Workbook

Sheet Ввод КР
T1: Таблица 1
A2: Ввод результатов выполнения заданий комплексной письменной работы
B3: Наименование ОУ | C3: МОУ Кубринская СОШ | K3: Класс | L3: 2 | O3: Дата проведения | T3: 22.04.2014
T4: ДД.ММ.ГГГГ
A5: № по журналу | B5: № варианта | C5: Номер задания (№ задания, максимальный балл за задание)
C6: Базовый уровень | R6: Повышенный уровень | Z6: спис. | AA6: 19
C7: 1 | D7: 2 | E7: 3 | F7: 4 | G7: 5 | H7: 6 | I7: 7 | K7: 8 | L7: 9 | M7: 10 | N7: 11 | O7: 12 | Q7: 13 | R7: 14 | S7: 15 | T7: 16 | V7: 17 | X7: 18
I8: 7а | J8: 7б | O8: 12а | P8: 12б | T8: 16а | U8: 16б | V8: 17а | W8: 17б | X8: 18а | Y8: 18б
C9: 1 | D9: 1 | E9: 1 | F9: 1 | G9: 1 | H9: 1 | I9: 1 | J9: 1 | K9: 1 | L9: 1 | M9: 1 | N9: 1 | O9: 2 | P9: 1 | Q9: 1 | R9: 1 | S9: 1 | T9: 1 | U9: 1 | V9: 1 | W9: 2 | X9: 1 | Y9: 1 | Z9: 1 | AA9: 1
A10: 1 | B10: 1 | C10: 1 | D10: 1 | E10: 1 | F10: 1 | G10: 1 | H10: 1 | I10: 1 | J10: 1 | K10: 1 | L10: 1 | M10: 1 | N10: 1 | O10: 2 | P10: 1 | Q10: 1 | R10: 1 | S10: 1 | T10: 1 | U10: 1 | V10: 1 | W10: 2 | X10: 0 | Y10: 0 | Z10: 1 | AA10: 1
A11: 2 | B11: 1 | C11: 1 | D11: 1 | E11: 1 | F11: 1 | G11: 1 | H11: 1 | I11: 1 | J11: 1 | K11: 1 | L11: 1 | M11: 0 | N11: 1 | O11: 1 | P11: 0 | Q11: 1 | R11: 0 | S11: 1 | T11: 0 | U11: 1 | V11: 1 | W11: 0 | X11: 0 | Y11: 0 | Z11: 0 | AA11: 0
A12: 3 | B12: 1 | C12: 1 | D12: 1 | E12: 1 | F12: 1 | G12: 1 | H12: 0 | I12: 1 | J12: 1 | K12: 1 | L12: 1 | M12: 0 | N12: 1 | O12: 2 | P12: 1 | Q12: 1 | R12: 1 | S12: 1 | T12: 1 | U12: 1 | V12: 0 | W12: 1 | X12: 1 | Y12: 0 | Z12: 1 | AA12: 1
A13: 4 | B13: 2 | C13: 0 | D13: 1 | E13: 1 | F13: 1 | G13: 1 | H13: 1 | I13: 1 | J13: 1 | K13: 1 | L13: 1 | M13: 1 | N13: 0 | O13: 2 | P13: 1 | Q13: 1 | R13: 1 | S13: 1 | T13: 0 | U13: 1 | V13: 1 | W13: 0 | X13: 0 | Y13: 0 | Z13: 0 | AA13: 1
A14: 5 | B14: 1 | C14: 1 | D14: 1 | E14: 1 | F14: 1 | G14: 1 | H14: 1 | I14: 1 | J14: 0 | K14: 1 | L14: 1 | M14: 0 | N14: 1 | O14: 1 | P14: 0 | Q14: 1 | R14: 0 | S14: 1 | T14: 0 | U14: 1 | V14: 0 | W14: 1 | X14: 0 | Y14: 0 | Z14: 0 | AA14: 1
A15: 6 | C15: 0 | D15: 0 | E15: 0 | F15: 0 | G15: 0 | H15: 0 | I15: 0 | J15: 0 | K15: 0 | L15: 0 | M15: 0 | N15: 0 | O15: 0 | P15: 0 | Q15: 0 | R15: 0 | S15: 0 | T15: 0 | U15: 0 | V15: 0 | W15: 0 | X15: 0 | Y15: 0 | Z15: 0 | AA15: 0
A16: 7 | B16: 2 | C16: 1 | D16: 1 | E16: 1 | F16: 1 | G16: 1 | H16: 0 | I16: 1 | J16: 1 | K16: 1 | L16: 1 | M16: 1 | N16: 1 | O16: 2 | P16: 1 | Q16: 1 | R16: 1 | S16: 1 | T16: 1 | U16: 1 | V16: 0 | W16: 2 | X16: 1 | Y16: 0 | Z16: 1 | AA16: 1
A17: 8 | B17: 1 | C17: 1 | D17: 1 | E17: 1 | F17: 1 | G17: 1 | H17: 1 | I17: 1 | J17: 1 | K17: 1 | L17: 1 | M17: 0 | N17: 1 | O17: 2 | P17: 1 | Q17: 1 | R17: 1 | S17: 0 | T17: 1 | U17: 1 | V17: 1 | W17: 2 | X17: 0 | Y17: 0 | Z17: 1 | AA17: 1
A18: 9 | B18: 2 | C18: 1 | D18: 1 | E18: 1 | F18: 1 | G18: 1 | H18: 1 | I18: 1 | J18: 1 | K18: 1 | L18: 1 | M18: 1 | N18: 1 | O18: 2 | P18: 1 | Q18: 1 | R18: 1 | S18: 1 | T18: 1 | U18: 1 | V18: 1 | W18: 1 | X18: 0 | Y18: 0 | Z18: 1 | AA18: 1
A19: 10 | B19: 2 | C19: 1 | D19: 1 | E19: 1 | F19: 1 | G19: 1 | H19: 1 | I19: 1 | J19: 1 | K19: 1 | L19: 1 | M19: 1 | N19: 1 | O19: 2 | P19: 1 | Q19: 1 | R19: 1 | S19: 1 | T19: 1 | U19: 1 | V19: 1 | W19: 2 | X19: 0 | Y19: 0 | Z19: 1 | AA19: 1
A20: 11 | B20: 2 | C20: 1 | D20: 1 | E20: 1 | F20: 1 | G20: 1 | H20: 1 | I20: 1 | J20: 1 | K20: 1 | L20: 1 | M20: 0 | N20: 1 | O20: 1 | P20: 0 | Q20: 1 | R20: 0 | S20: 1 | T20: 1 | U20: 1 | V20: 1 | W20: 1 | X20: 0 | Y20: 0 | Z20: 0 | AA20: 1
A21: 12 | B21: 1 | C21: 1 | D21: 1 | E21: 1 | F21: 1 | G21: 1 | H21: 1 | I21: 1 | J21: 1 | K21: 1 | L21: 1 | M21: 1 | N21: 1 | O21: 2 | P21: 1 | Q21: 1 | R21: 1 | S21: 1 | T21: 1 | U21: 1 | V21: 0 | W21: 0 | X21: 0 | Y21: 0 | Z21: 1 | AA21: 1
A22: 13
A23: 14
A24: 15
A25: 16
A26: 17
A27: 18
A28: 19
A29: 20
A30: 21
A31: 22
A32: 23
A33: 24
A34: 25
A35: 26
A36: 27
A37: 28
A38: 29
A39: 30
A40: 31
A41: 32
A42: 33
A43: 34
A44: 35
A45: 36
A46: 37
A47: 38
A48: 39
A49: 40

Sheet Результаты КР
J1: Таблица 2
A2: Результаты выполнения комплексной письменной работы
A4: № п/п | B4: № варианта | C4: Сумма баллов за задания БАЗОВОГО уровня | D4: Сумма баллов за задания ПОВЫШЕННОГО уровня | E4: Общий балл | F4: Успешность выполнения работы, % | G4: Границы, в которых находится ДМТ | J4: Уровень сформированности учебной компетентности | M4: низ | N4: верх
C5: 17 | D5: 9 | E5: =C5+D5 -> 26 | L5: граница базового | M5: 33.99 | N5: 34
G6: ДМТ<34 | H6: 34%<=ДМТ<74% | I6: ДМТ>=74% | L6: граница повышенного | M6: 73.99 | N6: 74
A7: 1 | B7: ='Ввод КР'!B10 -> 1 | C7: =SUM('Ввод КР'!C10:Q10,'Ввод КР'!Z10) -> 17 | D7: =SUM('Ввод КР'!R10:Y10) -> 7 | E7: =C7+D7 -> 24 | F7: =E7/$E$5*100 -> 92.30769231 | G7: =IF(AND($B7>0,$F7<$M$5),1,0) -> 0 | H7: =IF(AND($F7>=$N$5,$F7<$M$6),2,0) -> 0 | I7: =IF($F7>=$N$6,3,0) -> 3 | J7: =SUM(G7:I7) -> 3
A8: 2 | B8: ='Ввод КР'!B11 -> 1 | C8: =SUM('Ввод КР'!C11:Q11,'Ввод КР'!Z11) -> 13 | D8: =SUM('Ввод КР'!R11:Y11) -> 3 | E8: =C8+D8 -> 16 | F8: =E8/$E$5*100 -> 61.53846154 | G8: =IF(AND($B8>0,$F8<$M$5),1,0) -> 0 | H8: =IF(AND($F8>=$N$5,$F8<$M$6),2,0) -> 2 | I8: =IF($F8>=$N$6,3,0) -> 0 | J8: =SUM(G8:I8) -> 2
A9: 3 | B9: ='Ввод КР'!B12 -> 1 | C9: =SUM('Ввод КР'!C12:Q12,'Ввод КР'!Z12) -> 15 | D9: =SUM('Ввод КР'!R12:Y12) -> 6 | E9: 21 | F9: 80.76923077 | G9: 0 | H9: 0 | I9: 3 | J9: 3
A10: 4 | B10: ='Ввод КР'!B13 -> 2 | C10: =SUM('Ввод КР'!C13:Q13,'Ввод КР'!Z13) -> 14 | D10: =SUM('Ввод КР'!R13:Y13) -> 4 | E10: 18 | F10: 69.23076923 | G10: 0 | H10: 2 | I10: 0 | J10: 2
A11: 5 | B11: ='Ввод КР'!B14 -> 1 | C11: =SUM('Ввод КР'!C14:Q14,'Ввод КР'!Z14) -> 12 | D11: =SUM('Ввод КР'!R14:Y14) -> 3 | E11: 15 | F11: 57.69230769 | G11: 0 | H11: 2 | I11: 0 | J11: 2
A12: 6 | B12: ='Ввод КР'!B15 -> 0 | C12: =SUM('Ввод КР'!C15:Q15,'Ввод КР'!Z15) -> 0 | D12: =SUM('Ввод КР'!R15:Y15) -> 0 | E12: 0 | F12: 0 | G12: 0 | H12: 0 | I12: 0 | J12: 0
A13: 7 | B13: ='Ввод КР'!B16 -> 2 | C13: =SUM('Ввод КР'!C16:Q16,'Ввод КР'!Z16) -> 16 | D13: =SUM('Ввод КР'!R16:Y16) -> 7 | E13: 23 | F13: 88.46153846 | G13: 0 | H13: 0 | I13: 3 | J13: 3
A14: 8 | B14: ='Ввод КР'!B17 -> 1 | C14: =SUM('Ввод КР'!C17:Q17,'Ввод КР'!Z17) -> 16 | D14: =SUM('Ввод КР'!R17:Y17) -> 6 | E14: 22 | F14: 84.61538462 | G14: 0 | H14: 0 | I14: 3 | J14: 3
A15: 9 | B15: ='Ввод КР'!B18 -> 2 | C15: =SUM('Ввод КР'!C18:Q18,'Ввод КР'!Z18) -> 17 | D15: =SUM('Ввод КР'!R18:Y18) -> 6 | E15: 23 | F15: 88.46153846 | G15: 0 | H15: 0 | I15: 3 | J15: 3
A16: 10 | B16: ='Ввод КР'!B19 -> 2 | C16: =SUM('Ввод КР'!C19:Q19,'Ввод КР'!Z19) -> 17 | D16: =SUM('Ввод КР'!R19:Y19) -> 7 | E16: 24 | F16: 92.30769231 | G16: 0 | H16: 0 | I16: 3 | J16: 3
A17: 11 | B17: ='Ввод КР'!B20 -> 2 | C17: =SUM('Ввод КР'!C20:Q20,'Ввод КР'!Z20) -> 13 | D17: =SUM('Ввод КР'!R20:Y20) -> 5 | E17: 18 | F17: 69.23076923 | G17: 0 | H17: 2 | I17: 0 | J17: 2
A18: 12 | B18: ='Ввод КР'!B21 -> 1 | C18: =SUM('Ввод КР'!C21:Q21,'Ввод КР'!Z21) -> 17 | D18: =SUM('Ввод КР'!R21:Y21) -> 4 | E18: 21 | F18: 80.76923077 | G18: 0 | H18: 0 | I18: 3 | J18: 3
A19: 13 | B19: ='Ввод КР'!B22 -> 0 | C19: =SUM('Ввод КР'!C22:Q22,'Ввод КР'!Z22) -> 0 | D19: =SUM('Ввод КР'!R22:Y22) -> 0 | E19: 0 | F19: 0 | G19: 0 | H19: 0 | I19: 0 | J19: 0
A20: 14 | B20: ='Ввод КР'!B23 -> 0 | C20: =SUM('Ввод КР'!C23:Q23,'Ввод КР'!Z23) -> 0 | D20: =SUM('Ввод КР'!R23:Y23) -> 0 | E20: 0 | F20: 0 | G20: 0 | H20: 0 | I20: 0 | J20: 0
A21: 15 | B21: ='Ввод КР'!B24 -> 0 | C21: =SUM('Ввод КР'!C24:Q24,'Ввод КР'!Z24) -> 0 | D21: =SUM('Ввод КР'!R24:Y24) -> 0 | E21: 0 | F21: 0 | G21: 0 | H21: 0 | I21: 0 | J21: 0
A22: 16 | B22: ='Ввод КР'!B25 -> 0 | C22: =SUM('Ввод КР'!C25:Q25,'Ввод КР'!Z25) -> 0 | D22: =SUM('Ввод КР'!R25:Y25) -> 0 | E22: 0 | F22: 0 | G22: 0 | H22: 0 | I22: 0 | J22: 0
A23: 17 | B23: ='Ввод КР'!B26 -> 0 | C23: =SUM('Ввод КР'!C26:Q26,'Ввод КР'!Z26) -> 0 | D23: =SUM('Ввод КР'!R26:Y26) -> 0 | E23: 0 | F23: 0 | G23: 0 | H23: 0 | I23: 0 | J23: 0
A24: 18 | B24: ='Ввод КР'!B27 -> 0 | C24: =SUM('Ввод КР'!C27:Q27,'Ввод КР'!Z27) -> 0 | D24: =SUM('Ввод КР'!R27:Y27) -> 0 | E24: 0 | F24: 0 | G24: 0 | H24: 0 | I24: 0 | J24: 0
A25: 19 | B25: ='Ввод КР'!B28 -> 0 | C25: =SUM('Ввод КР'!C28:Q28,'Ввод КР'!Z28) -> 0 | D25: =SUM('Ввод КР'!R28:Y28) -> 0 | E25: 0 | F25: 0 | G25: 0 | H25: 0 | I25: 0 | J25: 0
A26: 20 | B26: ='Ввод КР'!B29 -> 0 | C26: =SUM('Ввод КР'!C29:Q29,'Ввод КР'!Z29) -> 0 | D26: =SUM('Ввод КР'!R29:Y29) -> 0 | E26: 0 | F26: 0 | G26: 0 | H26: 0 | I26: 0 | J26: 0
A27: 21 | B27: ='Ввод КР'!B30 -> 0 | C27: =SUM('Ввод КР'!C30:Q30,'Ввод КР'!Z30) -> 0 | D27: =SUM('Ввод КР'!R30:Y30) -> 0 | E27: 0 | F27: 0 | G27: 0 | H27: 0 | I27: 0 | J27: 0
A28: 22 | B28: ='Ввод КР'!B31 -> 0 | C28: =SUM('Ввод КР'!C31:Q31,'Ввод КР'!Z31) -> 0 | D28: =SUM('Ввод КР'!R31:Y31) -> 0 | E28: 0 | F28: 0 | G28: 0 | H28: 0 | I28: 0 | J28: 0
A29: 23 | B29: ='Ввод КР'!B32 -> 0 | C29: =SUM('Ввод КР'!C32:Q32,'Ввод КР'!Z32) -> 0 | D29: =SUM('Ввод КР'!R32:Y32) -> 0 | E29: 0 | F29: 0 | G29: 0 | H29: 0 | I29: 0 | J29: 0
A30: 24 | B30: ='Ввод КР'!B33 -> 0 | C30: =SUM('Ввод КР'!C33:Q33,'Ввод КР'!Z33) -> 0 | D30: =SUM('Ввод КР'!R33:Y33) -> 0 | E30: 0 | F30: 0 | G30: 0 | H30: 0 | I30: 0 | J30: 0
A31: 25 | B31: ='Ввод КР'!B34 -> 0 | C31: =SUM('Ввод КР'!C34:Q34,'Ввод КР'!Z34) -> 0 | D31: =SUM('Ввод КР'!R34:Y34) -> 0 | E31: 0 | F31: 0 | G31: 0 | H31: 0 | I31: 0 | J31: 0
A32: 26 | B32: ='Ввод КР'!B35 -> 0 | C32: =SUM('Ввод КР'!C35:Q35,'Ввод КР'!Z35) -> 0 | D32: =SUM('Ввод КР'!R35:Y35) -> 0 | E32: 0 | F32: 0 | G32: 0 | H32: 0 | I32: 0 | J32: 0
A33: 27 | B33: ='Ввод КР'!B36 -> 0 | C33: =SUM('Ввод КР'!C36:Q36,'Ввод КР'!Z36) -> 0 | D33: =SUM('Ввод КР'!R36:Y36) -> 0 | E33: 0 | F33: 0 | G33: 0 | H33: 0 | I33: 0 | J33: 0
A34: 28 | B34: ='Ввод КР'!B37 -> 0 | C34: =SUM('Ввод КР'!C37:Q37,'Ввод КР'!Z37) -> 0 | D34: =SUM('Ввод КР'!R37:Y37) -> 0 | E34: 0 | F34: 0 | G34: 0 | H34: 0 | I34: 0 | J34: 0
A35: 29 | B35: ='Ввод КР'!B38 -> 0 | C35: =SUM('Ввод КР'!C38:Q38,'Ввод КР'!Z38) -> 0 | D35: =SUM('Ввод КР'!R38:Y38) -> 0 | E35: 0 | F35: 0 | G35: 0 | H35: 0 | I35: 0 | J35: 0
A36: 30 | B36: ='Ввод КР'!B39 -> 0 | C36: =SUM('Ввод КР'!C39:Q39,'Ввод КР'!Z39) -> 0 | D36: =SUM('Ввод КР'!R39:Y39) -> 0 | E36: 0 | F36: 0 | G36: 0 | H36: 0 | I36: 0 | J36: 0
A37: 31 | B37: ='Ввод КР'!B40 -> 0 | C37: =SUM('Ввод КР'!C40:Q40,'Ввод КР'!Z40) -> 0 | D37: =SUM('Ввод КР'!R40:Y40) -> 0 | E37: 0 | F37: 0 | G37: 0 | H37: 0 | I37: 0 | J37: 0
A38: 32 | B38: ='Ввод КР'!B41 -> 0 | C38: =SUM('Ввод КР'!C41:Q41,'Ввод КР'!Z41) -> 0 | D38: =SUM('Ввод КР'!R41:Y41) -> 0 | E38: 0 | F38: 0 | G38: 0 | H38: 0 | I38: 0 | J38: 0
A39: 33 | B39: ='Ввод КР'!B42 -> 0 | C39: =SUM('Ввод КР'!C42:Q42,'Ввод КР'!Z42) -> 0 | D39: =SUM('Ввод КР'!R42:Y42) -> 0 | E39: 0 | F39: 0 | G39: 0 | H39: 0 | I39: 0 | J39: 0
A40: 34 | B40: ='Ввод КР'!B43 -> 0 | C40: =SUM('Ввод КР'!C43:Q43,'Ввод КР'!Z43) -> 0 | D40: =SUM('Ввод КР'!R43:Y43) -> 0 | E40: 0 | F40: 0 | G40: 0 | H40: 0 | I40: 0 | J40: 0
A41: 35 | B41: ='Ввод КР'!B44 -> 0 | C41: =SUM('Ввод КР'!C44:Q44,'Ввод КР'!Z44) -> 0 | D41: =SUM('Ввод КР'!R44:Y44) -> 0 | E41: 0 | F41: 0 | G41: 0 | H41: 0 | I41: 0 | J41: 0
A42: 36 | B42: ='Ввод КР'!B45 -> 0 | C42: =SUM('Ввод КР'!C45:Q45,'Ввод КР'!Z45) -> 0 | D42: =SUM('Ввод КР'!R45:Y45) -> 0 | E42: 0 | F42: 0 | G42: 0 | H42: 0 | I42: 0 | J42: 0
A43: 37 | B43: ='Ввод КР'!B46 -> 0 | C43: =SUM('Ввод КР'!C46:Q46,'Ввод КР'!Z46) -> 0 | D43: =SUM('Ввод КР'!R46:Y46) -> 0 | E43: 0 | F43: 0 | G43: 0 | H43: 0 | I43: 0 | J43: 0
A44: 38 | B44: ='Ввод КР'!B47 -> 0 | C44: =SUM('Ввод КР'!C47:Q47,'Ввод КР'!Z47) -> 0 | D44: =SUM('Ввод КР'!R47:Y47) -> 0 | E44: 0 | F44: 0 | G44: 0 | H44: 0 | I44: 0 | J44: 0
A45: 39 | B45: ='Ввод КР'!B48 -> 0 | C45: =SUM('Ввод КР'!C48:Q48,'Ввод КР'!Z48) -> 0 | D45: =SUM('Ввод КР'!R48:Y48) -> 0 | E45: 0 | F45: 0 | G45: 0 | H45: 0 | I45: 0 | J45: 0
A46: 40 | B46: ='Ввод КР'!B49 -> 0 | C46: =SUM('Ввод КР'!C49:Q49,'Ввод КР'!Z49) -> 0 | D46: =SUM('Ввод КР'!R49:Y49) -> 0 | E46: 0 | F46: 0 | G46: 0 | H46: 0 | I46: 0 | J46: 0

Sheet Справляемость_КР (hidden)
A1: № п/п | B1: Код участия | C1: Номер задания (№ задания, максимальный балл за задание) | AB1: Уровень сформированности учебной компетентности
C2: Базовый уровень | R2: Повышенный уровень | AB2: ниже базового (1) | AC2: базовый (2) | AD2: повышенный (3) | AE2: Номер УУД
C3: 1 | D3: 2 | E3: 3 | F3: 4 | G3: 5 | H3: 6 | I3: 7а | J3: 7б | K3: 8 | L3: 9 | M3: 10 | N3: 11 | O3: 12а | P3: 12б | Q3: 13 | R3: 14 | S3: 15 | T3: 16а | U3: 16б | V3: 17а | W3: 17б | X3: 18а | Y3: 18б | Z3: списывание | AA3: 19 | AE3: 1 | AF3: 2 | AG3: 3 | AH3: 4 | AI3: 5 | AJ3: 6 | AK3: 7 | AL3: 8 | AM3: 9 | AN3: 10 | AO3: 11 | AP3: 12 | AQ3: 13 | AR3: 14 | AS3: 15 | AT3: 16
C4: 1 | D4: 1 | E4: 1 | F4: 1 | G4: 1 | H4: 1 | I4: 1 | J4: 1 | K4: 1 | L4: 1 | M4: 1 | N4: 1 | O4: 2 | P4: 1 | Q4: 1 | R4: 1 | S4: 1 | T4: 1 | U4: 1 | V4: 1 | W4: 2 | X4: 1 | Y4: 1 | Z4: 1 | AA4: 1 | AE4: 2 | AF4: 3 | AG4: 2 | AH4: 3 | AI4: 2 | AJ4: 5 | AK4: 2 | AL4: 1 | AM4: 3 | AN4: 7 | AO4: 1 | AP4: 6 | AQ4: 3 | AR4: 4 | AS4: 5 | AT4: 5
A5: 1 | B5: =IF('Ввод КР'!B10>0,1,0) -> 1 | C5: =IF('Ввод КР'!C10=$C$4,1,0) -> 1 | D5: =IF('Ввод КР'!D10=$D$4,1,0) -> 1 | E5: =IF('Ввод КР'!E10=$E$4,1,0) -> 1 | F5: =IF('Ввод КР'!F10=$F$4,1,0) -> 1 | G5: =IF('Ввод КР'!G10=$G$4,1,0) -> 1 | H5: =IF('Ввод КР'!H10=$H$4,1,0) -> 1 | I5: =IF('Ввод КР'!I10=$I$4,1,0) -> 1 | J5: =IF('Ввод КР'!J10=$J$4,1,0) -> 1 | K5: =IF('Ввод КР'!K10=$K$4,1,0) -> 1 | L5: =IF('Ввод КР'!L10=$L$4,1,0) -> 1 | M5: =IF('Ввод КР'!M10=$M$4,1,0) -> 1 | N5: =IF('Ввод КР'!N10=$N$4,1,0) -> 1 | O5: =IF('Ввод КР'!O10=$O$4,1,0) -> 1 | P5: =IF('Ввод КР'!P10=$P$4,1,0) -> 1 | Q5: =IF('Ввод КР'!Q10=$Q$4,1,0) -> 1 | R5: =IF('Ввод КР'!R10=$R$4,1,0) -> 1 | S5: =IF('Ввод КР'!S10=$S$4,1,0) -> 1 | T5: =IF('Ввод КР'!T10=$T$4,1,0) -> 1 | U5: =IF('Ввод КР'!U10=$U$4,1,0) -> 1 | V5: =IF('Ввод КР'!V10=$V$4,1,0) -> 1 | W5: =IF('Ввод КР'!W10=$W$4,1,0) -> 1 | X5: =IF('Ввод КР'!X10=$X$4,1,0) -> 0 | Y5: =IF('Ввод КР'!Y10=$Y$4,1,0) -> 0 | Z5: =IF('Ввод КР'!Z10=$Z$4,1,0) -> 1 | AA5: =IF('Ввод КР'!AA10=$AA$4,1,0) -> 1 | AB5: =IF('Результаты КР'!$J7=1,1,0) -> 0 | AC5: =IF('Результаты КР'!$J7=2,1,0) -> 0 | AD5: =IF('Результаты КР'!$J7=3,1,0) -> 1
A6: 2 | B6: =IF('Ввод КР'!B11>0,1,0) -> 1 | C6: =IF('Ввод КР'!C11=$C$4,1,0) -> 1 | D6: =IF('Ввод КР'!D11=$D$4,1,0) -> 1 | E6: =IF('Ввод КР'!E11=$E$4,1,0) -> 1 | F6: =IF('Ввод КР'!F11=$F$4,1,0) -> 1 | G6: =IF('Ввод КР'!G11=$G$4,1,0) -> 1 | H6: =IF('Ввод КР'!H11=$H$4,1,0) -> 1 | I6: =IF('Ввод КР'!I11=$I$4,1,0) -> 1 | J6: =IF('Ввод КР'!J11=$J$4,1,0) -> 1 | K6: =IF('Ввод КР'!K11=$K$4,1,0) -> 1 | L6: =IF('Ввод КР'!L11=$L$4,1,0) -> 1 | M6: =IF('Ввод КР'!M11=$M$4,1,0) -> 0 | N6: =IF('Ввод КР'!N11=$N$4,1,0) -> 1 | O6: =IF('Ввод КР'!O11=$O$4,1,0) -> 0 | P6: =IF('Ввод КР'!P11=$P$4,1,0) -> 0 | Q6: =IF('Ввод КР'!Q11=$Q$4,1,0) -> 1 | R6: =IF('Ввод КР'!R11=$R$4,1,0) -> 0 | S6: =IF('Ввод КР'!S11=$S$4,1,0) -> 1 | T6: =IF('Ввод КР'!T11=$T$4,1,0) -> 0 | U6: =IF('Ввод КР'!U11=$U$4,1,0) -> 1 | V6: =IF('Ввод КР'!V11=$V$4,1,0) -> 1 | W6: =IF('Ввод КР'!W11=$W$4,1,0) -> 0 | X6: =IF('Ввод КР'!X11=$X$4,1,0) -> 0 | Y6: =IF('Ввод КР'!Y11=$Y$4,1,0) -> 0 | Z6: =IF('Ввод КР'!Z11=$Z$4,1,0) -> 0 | AA6: =IF('Ввод КР'!AA11=$AA$4,1,0) -> 0 | AB6: =IF('Результаты КР'!$J8=1,1,0) -> 0 | AC6: =IF('Результаты КР'!$J8=2,1,0) -> 1 | AD6: =IF('Результаты КР'!$J8=3,1,0) -> 0
A7: 3 | B7: =IF('Ввод КР'!B12>0,1,0) -> 1 | C7: =IF('Ввод КР'!C12=$C$4,1,0) -> 1 | D7: =IF('Ввод КР'!D12=$D$4,1,0) -> 1 | E7: =IF('Ввод КР'!E12=$E$4,1,0) -> 1 | F7: =IF('Ввод КР'!F12=$F$4,1,0) -> 1 | G7: =IF('Ввод КР'!G12=$G$4,1,0) -> 1 | H7: =IF('Ввод КР'!H12=$H$4,1,0) -> 0 | I7: =IF('Ввод КР'!I12=$I$4,1,0) -> 1 | J7: =IF('Ввод КР'!J12=$J$4,1,0) -> 1 | K7: =IF('Ввод КР'!K12=$K$4,1,0) -> 1 | L7: =IF('Ввод КР'!L12=$L$4,1,0) -> 1 | M7: =IF('Ввод КР'!M12=$M$4,1,0) -> 0 | N7: =IF('Ввод КР'!N12=$N$4,1,0) -> 1 | O7: =IF('Ввод КР'!O12=$O$4,1,0) -> 1 | P7: =IF('Ввод КР'!P12=$P$4,1,0) -> 1 | Q7: =IF('Ввод КР'!Q12=$Q$4,1,0) -> 1 | R7: =IF('Ввод КР'!R12=$R$4,1,0) -> 1 | S7: =IF('Ввод КР'!S12=$S$4,1,0) -> 1 | T7: =IF('Ввод КР'!T12=$T$4,1,0) -> 1 | U7: =IF('Ввод КР'!U12=$U$4,1,0) -> 1 | V7: =IF('Ввод КР'!V12=$V$4,1,0) -> 0 | W7: =IF('Ввод КР'!W12=$W$4,1,0) -> 0 | X7: =IF('Ввод КР'!X12=$X$4,1,0) -> 1 | Y7: =IF('Ввод КР'!Y12=$Y$4,1,0) -> 0 | Z7: =IF('Ввод КР'!Z12=$Z$4,1,0) -> 1 | AA7: =IF('Ввод КР'!AA12=$AA$4,1,0) -> 1 | AB7: =IF('Результаты КР'!$J9=1,1,0) -> 0 | AC7: =IF('Результаты КР'!$J9=2,1,0) -> 0 | AD7: =IF('Результаты КР'!$J9=3,1,0) -> 1
A8: 4 | B8: =IF('Ввод КР'!B13>0,1,0) -> 1 | C8: =IF('Ввод КР'!C13=$C$4,1,0) -> 0 | D8: =IF('Ввод КР'!D13=$D$4,1,0) -> 1 | E8: =IF('Ввод КР'!E13=$E$4,1,0) -> 1 | F8: =IF('Ввод КР'!F13=$F$4,1,0) -> 1 | G8: =IF('Ввод КР'!G13=$G$4,1,0) -> 1 | H8: =IF('Ввод КР'!H13=$H$4,1,0) -> 1 | I8: =IF('Ввод КР'!I13=$I$4,1,0) -> 1 | J8: =IF('Ввод КР'!J13=$J$4,1,0) -> 1 | K8: =IF('Ввод КР'!K13=$K$4,1,0) -> 1 | L8: =IF('Ввод КР'!L13=$L$4,1,0) -> 1 | M8: =IF('Ввод КР'!M13=$M$4,1,0) -> 1 | N8: =IF('Ввод КР'!N13=$N$4,1,0) -> 0 | O8: =IF('Ввод КР'!O13=$O$4,1,0) -> 1 | P8: =IF('Ввод КР'!P13=$P$4,1,0) -> 1 | Q8: =IF('Ввод КР'!Q13=$Q$4,1,0) -> 1 | R8: =IF('Ввод КР'!R13=$R$4,1,0) -> 1 | S8: =IF('Ввод КР'!S13=$S$4,1,0) -> 1 | T8: =IF('Ввод КР'!T13=$T$4,1,0) -> 0 | U8: =IF('Ввод КР'!U13=$U$4,1,0) -> 1 | V8: =IF('Ввод КР'!V13=$V$4,1,0) -> 1 | W8: =IF('Ввод КР'!W13=$W$4,1,0) -> 0 | X8: =IF('Ввод КР'!X13=$X$4,1,0) -> 0 | Y8: =IF('Ввод КР'!Y13=$Y$4,1,0) -> 0 | Z8: =IF('Ввод КР'!Z13=$Z$4,1,0) -> 0 | AA8: =IF('Ввод КР'!AA13=$AA$4,1,0) -> 1 | AB8: =IF('Результаты КР'!$J10=1,1,0) -> 0 | AC8: =IF('Результаты КР'!$J10=2,1,0) -> 1 | AD8: =IF('Результаты КР'!$J10=3,1,0) -> 0
A9: 5 | B9: =IF('Ввод КР'!B14>0,1,0) -> 1 | C9: =IF('Ввод КР'!C14=$C$4,1,0) -> 1 | D9: =IF('Ввод КР'!D14=$D$4,1,0) -> 1 | E9: =IF('Ввод КР'!E14=$E$4,1,0) -> 1 | F9: =IF('Ввод КР'!F14=$F$4,1,0) -> 1 | G9: =IF('Ввод КР'!G14=$G$4,1,0) -> 1 | H9: =IF('Ввод КР'!H14=$H$4,1,0) -> 1 | I9: =IF('Ввод КР'!I14=$I$4,1,0) -> 1 | J9: =IF('Ввод КР'!J14=$J$4,1,0) -> 0 | K9: =IF('Ввод КР'!K14=$K$4,1,0) -> 1 | L9: =IF('Ввод КР'!L14=$L$4,1,0) -> 1 | M9: =IF('Ввод КР'!M14=$M$4,1,0) -> 0 | N9: =IF('Ввод КР'!N14=$N$4,1,0) -> 1 | O9: =IF('Ввод КР'!O14=$O$4,1,0) -> 0 | P9: =IF('Ввод КР'!P14=$P$4,1,0) -> 0 | Q9: =IF('Ввод КР'!Q14=$Q$4,1,0) -> 1 | R9: =IF('Ввод КР'!R14=$R$4,1,0) -> 0 | S9: =IF('Ввод КР'!S14=$S$4,1,0) -> 1 | T9: =IF('Ввод КР'!T14=$T$4,1,0) -> 0 | U9: =IF('Ввод КР'!U14=$U$4,1,0) -> 1 | V9: =IF('Ввод КР'!V14=$V$4,1,0) -> 0 | W9: =IF('Ввод КР'!W14=$W$4,1,0) -> 0 | X9: =IF('Ввод КР'!X14=$X$4,1,0) -> 0 | Y9: =IF('Ввод КР'!Y14=$Y$4,1,0) -> 0 | Z9: =IF('Ввод КР'!Z14=$Z$4,1,0) -> 0 | AA9: =IF('Ввод КР'!AA14=$AA$4,1,0) -> 1 | AB9: =IF('Результаты КР'!$J11=1,1,0) -> 0 | AC9: =IF('Результаты КР'!$J11=2,1,0) -> 1 | AD9: =IF('Результаты КР'!$J11=3,1,0) -> 0
A10: 6 | B10: =IF('Ввод КР'!B15>0,1,0) -> 0 | C10: =IF('Ввод КР'!C15=$C$4,1,0) -> 0 | D10: =IF('Ввод КР'!D15=$D$4,1,0) -> 0 | E10: =IF('Ввод КР'!E15=$E$4,1,0) -> 0 | F10: =IF('Ввод КР'!F15=$F$4,1,0) -> 0 | G10: =IF('Ввод КР'!G15=$G$4,1,0) -> 0 | H10: =IF('Ввод КР'!H15=$H$4,1,0) -> 0 | I10: =IF('Ввод КР'!I15=$I$4,1,0) -> 0 | J10: =IF('Ввод КР'!J15=$J$4,1,0) -> 0 | K10: =IF('Ввод КР'!K15=$K$4,1,0) -> 0 | L10: =IF('Ввод КР'!L15=$L$4,1,0) -> 0 | M10: =IF('Ввод КР'!M15=$M$4,1,0) -> 0 | N10: =IF('Ввод КР'!N15=$N$4,1,0) -> 0 | O10: =IF('Ввод КР'!O15=$O$4,1,0) -> 0 | P10: =IF('Ввод КР'!P15=$P$4,1,0) -> 0 | Q10: =IF('Ввод КР'!Q15=$Q$4,1,0) -> 0 | R10: =IF('Ввод КР'!R15=$R$4,1,0) -> 0 | S10: =IF('Ввод КР'!S15=$S$4,1,0) -> 0 | T10: =IF('Ввод КР'!T15=$T$4,1,0) -> 0 | U10: =IF('Ввод КР'!U15=$U$4,1,0) -> 0 | V10: =IF('Ввод КР'!V15=$V$4,1,0) -> 0 | W10: =IF('Ввод КР'!W15=$W$4,1,0) -> 0 | X10: =IF('Ввод КР'!X15=$X$4,1,0) -> 0 | Y10: =IF('Ввод КР'!Y15=$Y$4,1,0) -> 0 | Z10: =IF('Ввод КР'!Z15=$Z$4,1,0) -> 0 | AA10: =IF('Ввод КР'!AA15=$AA$4,1,0) -> 0 | AB10: =IF('Результаты КР'!$J12=1,1,0) -> 0 | AC10: =IF('Результаты КР'!$J12=2,1,0) -> 0 | AD10: =IF('Результаты КР'!$J12=3,1,0) -> 0
A11: 7 | B11: =IF('Ввод КР'!B16>0,1,0) -> 1 | C11: =IF('Ввод КР'!C16=$C$4,1,0) -> 1 | D11: =IF('Ввод КР'!D16=$D$4,1,0) -> 1 | E11: =IF('Ввод КР'!E16=$E$4,1,0) -> 1 | F11: =IF('Ввод КР'!F16=$F$4,1,0) -> 1 | G11: =IF('Ввод КР'!G16=$G$4,1,0) -> 1 | H11: =IF('Ввод КР'!H16=$H$4,1,0) -> 0 | I11: =IF('Ввод КР'!I16=$I$4,1,0) -> 1 | J11: =IF('Ввод КР'!J16=$J$4,1,0) -> 1 | K11: =IF('Ввод КР'!K16=$K$4,1,0) -> 1 | L11: =IF('Ввод КР'!L16=$L$4,1,0) -> 1 | M11: =IF('Ввод КР'!M16=$M$4,1,0) -> 1 | N11: =IF('Ввод КР'!N16=$N$4,1,0) -> 1 | O11: =IF('Ввод КР'!O16=$O$4,1,0) -> 1 | P11: =IF('Ввод КР'!P16=$P$4,1,0) -> 1 | Q11: =IF('Ввод КР'!Q16=$Q$4,1,0) -> 1 | R11: =IF('Ввод КР'!R16=$R$4,1,0) -> 1 | S11: =IF('Ввод КР'!S16=$S$4,1,0) -> 1 | T11: =IF('Ввод КР'!T16=$T$4,1,0) -> 1 | U11: =IF('Ввод КР'!U16=$U$4,1,0) -> 1 | V11: =IF('Ввод КР'!V16=$V$4,1,0) -> 0 | W11: =IF('Ввод КР'!W16=$W$4,1,0) -> 1 | X11: =IF('Ввод КР'!X16=$X$4,1,0) -> 1 | Y11: =IF('Ввод КР'!Y16=$Y$4,1,0) -> 0 | Z11: =IF('Ввод КР'!Z16=$Z$4,1,0) -> 1 | AA11: =IF('Ввод КР'!AA16=$AA$4,1,0) -> 1 | AB11: =IF('Результаты КР'!$J13=1,1,0) -> 0 | AC11: =IF('Результаты КР'!$J13=2,1,0) -> 0 | AD11: =IF('Результаты КР'!$J13=3,1,0) -> 1
A12: 8 | B12: =IF('Ввод КР'!B17>0,1,0) -> 1 | C12: =IF('Ввод КР'!C17=$C$4,1,0) -> 1 | D12: =IF('Ввод КР'!D17=$D$4,1,0) -> 1 | E12: =IF('Ввод КР'!E17=$E$4,1,0) -> 1 | F12: =IF('Ввод КР'!F17=$F$4,1,0) -> 1 | G12: =IF('Ввод КР'!G17=$G$4,1,0) -> 1 | H12: =IF('Ввод КР'!H17=$H$4,1,0) -> 1 | I12: =IF('Ввод КР'!I17=$I$4,1,0) -> 1 | J12: =IF('Ввод КР'!J17=$J$4,1,0) -> 1 | K12: =IF('Ввод КР'!K17=$K$4,1,0) -> 1 | L12: =IF('Ввод КР'!L17=$L$4,1,0) -> 1 | M12: =IF('Ввод КР'!M17=$M$4,1,0) -> 0 | N12: =IF('Ввод КР'!N17=$N$4,1,0) -> 1 | O12: =IF('Ввод КР'!O17=$O$4,1,0) -> 1 | P12: =IF('Ввод КР'!P17=$P$4,1,0) -> 1 | Q12: =IF('Ввод КР'!Q17=$Q$4,1,0) -> 1 | R12: =IF('Ввод КР'!R17=$R$4,1,0) -> 1 | S12: =IF('Ввод КР'!S17=$S$4,1,0) -> 0 | T12: =IF('Ввод КР'!T17=$T$4,1,0) -> 1 | U12: =IF('Ввод КР'!U17=$U$4,1,0) -> 1 | V12: =IF('Ввод КР'!V17=$V$4,1,0) -> 1 | W12: =IF('Ввод КР'!W17=$W$4,1,0) -> 1 | X12: =IF('Ввод КР'!X17=$X$4,1,0) -> 0 | Y12: =IF('Ввод КР'!Y17=$Y$4,1,0) -> 0 | Z12: =IF('Ввод КР'!Z17=$Z$4,1,0) -> 1 | AA12: =IF('Ввод КР'!AA17=$AA$4,1,0) -> 1 | AB12: =IF('Результаты КР'!$J14=1,1,0) -> 0 | AC12: =IF('Результаты КР'!$J14=2,1,0) -> 0 | AD12: =IF('Результаты КР'!$J14=3,1,0) -> 1
A13: 9 | B13: =IF('Ввод КР'!B18>0,1,0) -> 1 | C13: =IF('Ввод КР'!C18=$C$4,1,0) -> 1 | D13: =IF('Ввод КР'!D18=$D$4,1,0) -> 1 | E13: =IF('Ввод КР'!E18=$E$4,1,0) -> 1 | F13: =IF('Ввод КР'!F18=$F$4,1,0) -> 1 | G13: =IF('Ввод КР'!G18=$G$4,1,0) -> 1 | H13: =IF('Ввод КР'!H18=$H$4,1,0) -> 1 | I13: =IF('Ввод КР'!I18=$I$4,1,0) -> 1 | J13: =IF('Ввод КР'!J18=$J$4,1,0) -> 1 | K13: =IF('Ввод КР'!K18=$K$4,1,0) -> 1 | L13: =IF('Ввод КР'!L18=$L$4,1,0) -> 1 | M13: =IF('Ввод КР'!M18=$M$4,1,0) -> 1 | N13: =IF('Ввод КР'!N18=$N$4,1,0) -> 1 | O13: =IF('Ввод КР'!O18=$O$4,1,0) -> 1 | P13: =IF('Ввод КР'!P18=$P$4,1,0) -> 1 | Q13: =IF('Ввод КР'!Q18=$Q$4,1,0) -> 1 | R13: =IF('Ввод КР'!R18=$R$4,1,0) -> 1 | S13: =IF('Ввод КР'!S18=$S$4,1,0) -> 1 | T13: =IF('Ввод КР'!T18=$T$4,1,0) -> 1 | U13: =IF('Ввод КР'!U18=$U$4,1,0) -> 1 | V13: =IF('Ввод КР'!V18=$V$4,1,0) -> 1 | W13: =IF('Ввод КР'!W18=$W$4,1,0) -> 0 | X13: =IF('Ввод КР'!X18=$X$4,1,0) -> 0 | Y13: =IF('Ввод КР'!Y18=$Y$4,1,0) -> 0 | Z13: =IF('Ввод КР'!Z18=$Z$4,1,0) -> 1 | AA13: =IF('Ввод КР'!AA18=$AA$4,1,0) -> 1 | AB13: =IF('Результаты КР'!$J15=1,1,0) -> 0 | AC13: =IF('Результаты КР'!$J15=2,1,0) -> 0 | AD13: =IF('Результаты КР'!$J15=3,1,0) -> 1
A14: 10 | B14: =IF('Ввод КР'!B19>0,1,0) -> 1 | C14: =IF('Ввод КР'!C19=$C$4,1,0) -> 1 | D14: =IF('Ввод КР'!D19=$D$4,1,0) -> 1 | E14: =IF('Ввод КР'!E19=$E$4,1,0) -> 1 | F14: =IF('Ввод КР'!F19=$F$4,1,0) -> 1 | G14: =IF('Ввод КР'!G19=$G$4,1,0) -> 1 | H14: =IF('Ввод КР'!H19=$H$4,1,0) -> 1 | I14: =IF('Ввод КР'!I19=$I$4,1,0) -> 1 | J14: =IF('Ввод КР'!J19=$J$4,1,0) -> 1 | K14: =IF('Ввод КР'!K19=$K$4,1,0) -> 1 | L14: =IF('Ввод КР'!L19=$L$4,1,0) -> 1 | M14: =IF('Ввод КР'!M19=$M$4,1,0) -> 1 | N14: =IF('Ввод КР'!N19=$N$4,1,0) -> 1 | O14: =IF('Ввод КР'!O19=$O$4,1,0) -> 1 | P14: =IF('Ввод КР'!P19=$P$4,1,0) -> 1 | Q14: =IF('Ввод КР'!Q19=$Q$4,1,0) -> 1 | R14: =IF('Ввод КР'!R19=$R$4,1,0) -> 1 | S14: =IF('Ввод КР'!S19=$S$4,1,0) -> 1 | T14: =IF('Ввод КР'!T19=$T$4,1,0) -> 1 | U14: =IF('Ввод КР'!U19=$U$4,1,0) -> 1 | V14: =IF('Ввод КР'!V19=$V$4,1,0) -> 1 | W14: =IF('Ввод КР'!W19=$W$4,1,0) -> 1 | X14: =IF('Ввод КР'!X19=$X$4,1,0) -> 0 | Y14: =IF('Ввод КР'!Y19=$Y$4,1,0) -> 0 | Z14: =IF('Ввод КР'!Z19=$Z$4,1,0) -> 1 | AA14: =IF('Ввод КР'!AA19=$AA$4,1,0) -> 1 | AB14: =IF('Результаты КР'!$J16=1,1,0) -> 0 | AC14: =IF('Результаты КР'!$J16=2,1,0) -> 0 | AD14: =IF('Результаты КР'!$J16=3,1,0) -> 1
A15: 11 | B15: =IF('Ввод КР'!B20>0,1,0) -> 1 | C15: =IF('Ввод КР'!C20=$C$4,1,0) -> 1 | D15: =IF('Ввод КР'!D20=$D$4,1,0) -> 1 | E15: =IF('Ввод КР'!E20=$E$4,1,0) -> 1 | F15: =IF('Ввод КР'!F20=$F$4,1,0) -> 1 | G15: =IF('Ввод КР'!G20=$G$4,1,0) -> 1 | H15: =IF('Ввод КР'!H20=$H$4,1,0) -> 1 | I15: =IF('Ввод КР'!I20=$I$4,1,0) -> 1 | J15: =IF('Ввод КР'!J20=$J$4,1,0) -> 1 | K15: =IF('Ввод КР'!K20=$K$4,1,0) -> 1 | L15: =IF('Ввод КР'!L20=$L$4,1,0) -> 1 | M15: =IF('Ввод КР'!M20=$M$4,1,0) -> 0 | N15: =IF('Ввод КР'!N20=$N$4,1,0) -> 1 | O15: =IF('Ввод КР'!O20=$O$4,1,0) -> 0 | P15: =IF('Ввод КР'!P20=$P$4,1,0) -> 0 | Q15: =IF('Ввод КР'!Q20=$Q$4,1,0) -> 1 | R15: =IF('Ввод КР'!R20=$R$4,1,0) -> 0 | S15: =IF('Ввод КР'!S20=$S$4,1,0) -> 1 | T15: =IF('Ввод КР'!T20=$T$4,1,0) -> 1 | U15: =IF('Ввод КР'!U20=$U$4,1,0) -> 1 | V15: =IF('Ввод КР'!V20=$V$4,1,0) -> 1 | W15: =IF('Ввод КР'!W20=$W$4,1,0) -> 0 | X15: =IF('Ввод КР'!X20=$X$4,1,0) -> 0 | Y15: =IF('Ввод КР'!Y20=$Y$4,1,0) -> 0 | Z15: =IF('Ввод КР'!Z20=$Z$4,1,0) -> 0 | AA15: =IF('Ввод КР'!AA20=$AA$4,1,0) -> 1 | AB15: =IF('Результаты КР'!$J17=1,1,0) -> 0 | AC15: =IF('Результаты КР'!$J17=2,1,0) -> 1 | AD15: =IF('Результаты КР'!$J17=3,1,0) -> 0
A16: 12 | B16: =IF('Ввод КР'!B21>0,1,0) -> 1 | C16: =IF('Ввод КР'!C21=$C$4,1,0) -> 1 | D16: =IF('Ввод КР'!D21=$D$4,1,0) -> 1 | E16: =IF('Ввод КР'!E21=$E$4,1,0) -> 1 | F16: =IF('Ввод КР'!F21=$F$4,1,0) -> 1 | G16: =IF('Ввод КР'!G21=$G$4,1,0) -> 1 | H16: =IF('Ввод КР'!H21=$H$4,1,0) -> 1 | I16: =IF('Ввод КР'!I21=$I$4,1,0) -> 1 | J16: =IF('Ввод КР'!J21=$J$4,1,0) -> 1 | K16: =IF('Ввод КР'!K21=$K$4,1,0) -> 1 | L16: =IF('Ввод КР'!L21=$L$4,1,0) -> 1 | M16: =IF('Ввод КР'!M21=$M$4,1,0) -> 1 | N16: =IF('Ввод КР'!N21=$N$4,1,0) -> 1 | O16: =IF('Ввод КР'!O21=$O$4,1,0) -> 1 | P16: =IF('Ввод КР'!P21=$P$4,1,0) -> 1 | Q16: =IF('Ввод КР'!Q21=$Q$4,1,0) -> 1 | R16: =IF('Ввод КР'!R21=$R$4,1,0) -> 1 | S16: =IF('Ввод КР'!S21=$S$4,1,0) -> 1 | T16: =IF('Ввод КР'!T21=$T$4,1,0) -> 1 | U16: =IF('Ввод КР'!U21=$U$4,1,0) -> 1 | V16: =IF('Ввод КР'!V21=$V$4,1,0) -> 0 | W16: =IF('Ввод КР'!W21=$W$4,1,0) -> 0 | X16: =IF('Ввод КР'!X21=$X$4,1,0) -> 0 | Y16: =IF('Ввод КР'!Y21=$Y$4,1,0) -> 0 | Z16: =IF('Ввод КР'!Z21=$Z$4,1,0) -> 1 | AA16: =IF('Ввод КР'!AA21=$AA$4,1,0) -> 1 | AB16: =IF('Результаты КР'!$J18=1,1,0) -> 0 | AC16: =IF('Результаты КР'!$J18=2,1,0) -> 0 | AD16: =IF('Результаты КР'!$J18=3,1,0) -> 1
A17: 13 | B17: =IF('Ввод КР'!B22>0,1,0) -> 0 | C17: =IF('Ввод КР'!C22=$C$4,1,0) -> 0 | D17: =IF('Ввод КР'!D22=$D$4,1,0) -> 0 | E17: =IF('Ввод КР'!E22=$E$4,1,0) -> 0 | F17: =IF('Ввод КР'!F22=$F$4,1,0) -> 0 | G17: =IF('Ввод КР'!G22=$G$4,1,0) -> 0 | H17: =IF('Ввод КР'!H22=$H$4,1,0) -> 0 | I17: =IF('Ввод КР'!I22=$I$4,1,0) -> 0 | J17: =IF('Ввод КР'!J22=$J$4,1,0) -> 0 | K17: =IF('Ввод КР'!K22=$K$4,1,0) -> 0 | L17: =IF('Ввод КР'!L22=$L$4,1,0) -> 0 | M17: =IF('Ввод КР'!M22=$M$4,1,0) -> 0 | N17: =IF('Ввод КР'!N22=$N$4,1,0) -> 0 | O17: =IF('Ввод КР'!O22=$O$4,1,0) -> 0 | P17: =IF('Ввод КР'!P22=$P$4,1,0) -> 0 | Q17: =IF('Ввод КР'!Q22=$Q$4,1,0) -> 0 | R17: =IF('Ввод КР'!R22=$R$4,1,0) -> 0 | S17: =IF('Ввод КР'!S22=$S$4,1,0) -> 0 | T17: =IF('Ввод КР'!T22=$T$4,1,0) -> 0 | U17: =IF('Ввод КР'!U22=$U$4,1,0) -> 0 | V17: =IF('Ввод КР'!V22=$V$4,1,0) -> 0 | W17: =IF('Ввод КР'!W22=$W$4,1,0) -> 0 | X17: =IF('Ввод КР'!X22=$X$4,1,0) -> 0 | Y17: =IF('Ввод КР'!Y22=$Y$4,1,0) -> 0 | Z17: =IF('Ввод КР'!Z22=$Z$4,1,0) -> 0 | AA17: =IF('Ввод КР'!AA22=$AA$4,1,0) -> 0 | AB17: =IF('Результаты КР'!$J19=1,1,0) -> 0 | AC17: =IF('Результаты КР'!$J19=2,1,0) -> 0 | AD17: =IF('Результаты КР'!$J19=3,1,0) -> 0
A18: 14 | B18: =IF('Ввод КР'!B23>0,1,0) -> 0 | C18: =IF('Ввод КР'!C23=$C$4,1,0) -> 0 | D18: =IF('Ввод КР'!D23=$D$4,1,0) -> 0 | E18: =IF('Ввод КР'!E23=$E$4,1,0) -> 0 | F18: =IF('Ввод КР'!F23=$F$4,1,0) -> 0 | G18: =IF('Ввод КР'!G23=$G$4,1,0) -> 0 | H18: =IF('Ввод КР'!H23=$H$4,1,0) -> 0 | I18: =IF('Ввод КР'!I23=$I$4,1,0) -> 0 | J18: =IF('Ввод КР'!J23=$J$4,1,0) -> 0 | K18: =IF('Ввод КР'!K23=$K$4,1,0) -> 0 | L18: =IF('Ввод КР'!L23=$L$4,1,0) -> 0 | M18: =IF('Ввод КР'!M23=$M$4,1,0) -> 0 | N18: =IF('Ввод КР'!N23=$N$4,1,0) -> 0 | O18: =IF('Ввод КР'!O23=$O$4,1,0) -> 0 | P18: =IF('Ввод КР'!P23=$P$4,1,0) -> 0 | Q18: =IF('Ввод КР'!Q23=$Q$4,1,0) -> 0 | R18: =IF('Ввод КР'!R23=$R$4,1,0) -> 0 | S18: =IF('Ввод КР'!S23=$S$4,1,0) -> 0 | T18: =IF('Ввод КР'!T23=$T$4,1,0) -> 0 | U18: =IF('Ввод КР'!U23=$U$4,1,0) -> 0 | V18: =IF('Ввод КР'!V23=$V$4,1,0) -> 0 | W18: =IF('Ввод КР'!W23=$W$4,1,0) -> 0 | X18: =IF('Ввод КР'!X23=$X$4,1,0) -> 0 | Y18: =IF('Ввод КР'!Y23=$Y$4,1,0) -> 0 | Z18: =IF('Ввод КР'!Z23=$Z$4,1,0) -> 0 | AA18: =IF('Ввод КР'!AA23=$AA$4,1,0) -> 0 | AB18: =IF('Результаты КР'!$J20=1,1,0) -> 0 | AC18: =IF('Результаты КР'!$J20=2,1,0) -> 0 | AD18: =IF('Результаты КР'!$J20=3,1,0) -> 0
A19: 15 | B19: =IF('Ввод КР'!B24>0,1,0) -> 0 | C19: =IF('Ввод КР'!C24=$C$4,1,0) -> 0 | D19: =IF('Ввод КР'!D24=$D$4,1,0) -> 0 | E19: =IF('Ввод КР'!E24=$E$4,1,0) -> 0 | F19: =IF('Ввод КР'!F24=$F$4,1,0) -> 0 | G19: =IF('Ввод КР'!G24=$G$4,1,0) -> 0 | H19: =IF('Ввод КР'!H24=$H$4,1,0) -> 0 | I19: =IF('Ввод КР'!I24=$I$4,1,0) -> 0 | J19: =IF('Ввод КР'!J24=$J$4,1,0) -> 0 | K19: =IF('Ввод КР'!K24=$K$4,1,0) -> 0 | L19: =IF('Ввод КР'!L24=$L$4,1,0) -> 0 | M19: =IF('Ввод КР'!M24=$M$4,1,0) -> 0 | N19: =IF('Ввод КР'!N24=$N$4,1,0) -> 0 | O19: =IF('Ввод КР'!O24=$O$4,1,0) -> 0 | P19: =IF('Ввод КР'!P24=$P$4,1,0) -> 0 | Q19: =IF('Ввод КР'!Q24=$Q$4,1,0) -> 0 | R19: =IF('Ввод КР'!R24=$R$4,1,0) -> 0 | S19: =IF('Ввод КР'!S24=$S$4,1,0) -> 0 | T19: =IF('Ввод КР'!T24=$T$4,1,0) -> 0 | U19: =IF('Ввод КР'!U24=$U$4,1,0) -> 0 | V19: =IF('Ввод КР'!V24=$V$4,1,0) -> 0 | W19: =IF('Ввод КР'!W24=$W$4,1,0) -> 0 | X19: =IF('Ввод КР'!X24=$X$4,1,0) -> 0 | Y19: =IF('Ввод КР'!Y24=$Y$4,1,0) -> 0 | Z19: =IF('Ввод КР'!Z24=$Z$4,1,0) -> 0 | AA19: =IF('Ввод КР'!AA24=$AA$4,1,0) -> 0 | AB19: =IF('Результаты КР'!$J21=1,1,0) -> 0 | AC19: =IF('Результаты КР'!$J21=2,1,0) -> 0 | AD19: =IF('Результаты КР'!$J21=3,1,0) -> 0
A20: 16 | B20: =IF('Ввод КР'!B25>0,1,0) -> 0 | C20: =IF('Ввод КР'!C25=$C$4,1,0) -> 0 | D20: =IF('Ввод КР'!D25=$D$4,1,0) -> 0 | E20: =IF('Ввод КР'!E25=$E$4,1,0) -> 0 | F20: =IF('Ввод КР'!F25=$F$4,1,0) -> 0 | G20: =IF('Ввод КР'!G25=$G$4,1,0) -> 0 | H20: =IF('Ввод КР'!H25=$H$4,1,0) -> 0 | I20: =IF('Ввод КР'!I25=$I$4,1,0) -> 0 | J20: =IF('Ввод КР'!J25=$J$4,1,0) -> 0 | K20: =IF('Ввод КР'!K25=$K$4,1,0) -> 0 | L20: =IF('Ввод КР'!L25=$L$4,1,0) -> 0 | M20: =IF('Ввод КР'!M25=$M$4,1,0) -> 0 | N20: =IF('Ввод КР'!N25=$N$4,1,0) -> 0 | O20: =IF('Ввод КР'!O25=$O$4,1,0) -> 0 | P20: =IF('Ввод КР'!P25=$P$4,1,0) -> 0 | Q20: =IF('Ввод КР'!Q25=$Q$4,1,0) -> 0 | R20: =IF('Ввод КР'!R25=$R$4,1,0) -> 0 | S20: =IF('Ввод КР'!S25=$S$4,1,0) -> 0 | T20: =IF('Ввод КР'!T25=$T$4,1,0) -> 0 | U20: =IF('Ввод КР'!U25=$U$4,1,0) -> 0 | V20: =IF('Ввод КР'!V25=$V$4,1,0) -> 0 | W20: =IF('Ввод КР'!W25=$W$4,1,0) -> 0 | X20: =IF('Ввод КР'!X25=$X$4,1,0) -> 0 | Y20: =IF('Ввод КР'!Y25=$Y$4,1,0) -> 0 | Z20: =IF('Ввод КР'!Z25=$Z$4,1,0) -> 0 | AA20: =IF('Ввод КР'!AA25=$AA$4,1,0) -> 0 | AB20: =IF('Результаты КР'!$J22=1,1,0) -> 0 | AC20: =IF('Результаты КР'!$J22=2,1,0) -> 0 | AD20: =IF('Результаты КР'!$J22=3,1,0) -> 0
A21: 17 | B21: =IF('Ввод КР'!B26>0,1,0) -> 0 | C21: =IF('Ввод КР'!C26=$C$4,1,0) -> 0 | D21: =IF('Ввод КР'!D26=$D$4,1,0) -> 0 | E21: =IF('Ввод КР'!E26=$E$4,1,0) -> 0 | F21: =IF('Ввод КР'!F26=$F$4,1,0) -> 0 | G21: =IF('Ввод КР'!G26=$G$4,1,0) -> 0 | H21: =IF('Ввод КР'!H26=$H$4,1,0) -> 0 | I21: =IF('Ввод КР'!I26=$I$4,1,0) -> 0 | J21: =IF('Ввод КР'!J26=$J$4,1,0) -> 0 | K21: =IF('Ввод КР'!K26=$K$4,1,0) -> 0 | L21: =IF('Ввод КР'!L26=$L$4,1,0) -> 0 | M21: =IF('Ввод КР'!M26=$M$4,1,0) -> 0 | N21: =IF('Ввод КР'!N26=$N$4,1,0) -> 0 | O21: =IF('Ввод КР'!O26=$O$4,1,0) -> 0 | P21: =IF('Ввод КР'!P26=$P$4,1,0) -> 0 | Q21: =IF('Ввод КР'!Q26=$Q$4,1,0) -> 0 | R21: =IF('Ввод КР'!R26=$R$4,1,0) -> 0 | S21: =IF('Ввод КР'!S26=$S$4,1,0) -> 0 | T21: =IF('Ввод КР'!T26=$T$4,1,0) -> 0 | U21: =IF('Ввод КР'!U26=$U$4,1,0) -> 0 | V21: =IF('Ввод КР'!V26=$V$4,1,0) -> 0 | W21: =IF('Ввод КР'!W26=$W$4,1,0) -> 0 | X21: =IF('Ввод КР'!X26=$X$4,1,0) -> 0 | Y21: =IF('Ввод КР'!Y26=$Y$4,1,0) -> 0 | Z21: =IF('Ввод КР'!Z26=$Z$4,1,0) -> 0 | AA21: =IF('Ввод КР'!AA26=$AA$4,1,0) -> 0 | AB21: =IF('Результаты КР'!$J23=1,1,0) -> 0 | AC21: =IF('Результаты КР'!$J23=2,1,0) -> 0 | AD21: =IF('Результаты КР'!$J23=3,1,0) -> 0
A22: 18 | B22: =IF('Ввод КР'!B27>0,1,0) -> 0 | C22: =IF('Ввод КР'!C27=$C$4,1,0) -> 0 | D22: =IF('Ввод КР'!D27=$D$4,1,0) -> 0 | E22: =IF('Ввод КР'!E27=$E$4,1,0) -> 0 | F22: =IF('Ввод КР'!F27=$F$4,1,0) -> 0 | G22: =IF('Ввод КР'!G27=$G$4,1,0) -> 0 | H22: =IF('Ввод КР'!H27=$H$4,1,0) -> 0 | I22: =IF('Ввод КР'!I27=$I$4,1,0) -> 0 | J22: =IF('Ввод КР'!J27=$J$4,1,0) -> 0 | K22: =IF('Ввод КР'!K27=$K$4,1,0) -> 0 | L22: =IF('Ввод КР'!L27=$L$4,1,0) -> 0 | M22: =IF('Ввод КР'!M27=$M$4,1,0) -> 0 | N22: =IF('Ввод КР'!N27=$N$4,1,0) -> 0 | O22: =IF('Ввод КР'!O27=$O$4,1,0) -> 0 | P22: =IF('Ввод КР'!P27=$P$4,1,0) -> 0 | Q22: =IF('Ввод КР'!Q27=$Q$4,1,0) -> 0 | R22: =IF('Ввод КР'!R27=$R$4,1,0) -> 0 | S22: =IF('Ввод КР'!S27=$S$4,1,0) -> 0 | T22: =IF('Ввод КР'!T27=$T$4,1,0) -> 0 | U22: =IF('Ввод КР'!U27=$U$4,1,0) -> 0 | V22: =IF('Ввод КР'!V27=$V$4,1,0) -> 0 | W22: =IF('Ввод КР'!W27=$W$4,1,0) -> 0 | X22: =IF('Ввод КР'!X27=$X$4,1,0) -> 0 | Y22: =IF('Ввод КР'!Y27=$Y$4,1,0) -> 0 | Z22: =IF('Ввод КР'!Z27=$Z$4,1,0) -> 0 | AA22: =IF('Ввод КР'!AA27=$AA$4,1,0) -> 0 | AB22: =IF('Результаты КР'!$J24=1,1,0) -> 0 | AC22: =IF('Результаты КР'!$J24=2,1,0) -> 0 | AD22: =IF('Результаты КР'!$J24=3,1,0) -> 0
A23: 19 | B23: =IF('Ввод КР'!B28>0,1,0) -> 0 | C23: =IF('Ввод КР'!C28=$C$4,1,0) -> 0 | D23: =IF('Ввод КР'!D28=$D$4,1,0) -> 0 | E23: =IF('Ввод КР'!E28=$E$4,1,0) -> 0 | F23: =IF('Ввод КР'!F28=$F$4,1,0) -> 0 | G23: =IF('Ввод КР'!G28=$G$4,1,0) -> 0 | H23: =IF('Ввод КР'!H28=$H$4,1,0) -> 0 | I23: =IF('Ввод КР'!I28=$I$4,1,0) -> 0 | J23: =IF('Ввод КР'!J28=$J$4,1,0) -> 0 | K23: =IF('Ввод КР'!K28=$K$4,1,0) -> 0 | L23: =IF('Ввод КР'!L28=$L$4,1,0) -> 0 | M23: =IF('Ввод КР'!M28=$M$4,1,0) -> 0 | N23: =IF('Ввод КР'!N28=$N$4,1,0) -> 0 | O23: =IF('Ввод КР'!O28=$O$4,1,0) -> 0 | P23: =IF('Ввод КР'!P28=$P$4,1,0) -> 0 | Q23: =IF('Ввод КР'!Q28=$Q$4,1,0) -> 0 | R23: =IF('Ввод КР'!R28=$R$4,1,0) -> 0 | S23: =IF('Ввод КР'!S28=$S$4,1,0) -> 0 | T23: =IF('Ввод КР'!T28=$T$4,1,0) -> 0 | U23: =IF('Ввод КР'!U28=$U$4,1,0) -> 0 | V23: =IF('Ввод КР'!V28=$V$4,1,0) -> 0 | W23: =IF('Ввод КР'!W28=$W$4,1,0) -> 0 | X23: =IF('Ввод КР'!X28=$X$4,1,0) -> 0 | Y23: =IF('Ввод КР'!Y28=$Y$4,1,0) -> 0 | Z23: =IF('Ввод КР'!Z28=$Z$4,1,0) -> 0 | AA23: =IF('Ввод КР'!AA28=$AA$4,1,0) -> 0 | AB23: =IF('Результаты КР'!$J25=1,1,0) -> 0 | AC23: =IF('Результаты КР'!$J25=2,1,0) -> 0 | AD23: =IF('Результаты КР'!$J25=3,1,0) -> 0
A24: 20 | B24: =IF('Ввод КР'!B29>0,1,0) -> 0 | C24: =IF('Ввод КР'!C29=$C$4,1,0) -> 0 | D24: =IF('Ввод КР'!D29=$D$4,1,0) -> 0 | E24: =IF('Ввод КР'!E29=$E$4,1,0) -> 0 | F24: =IF('Ввод КР'!F29=$F$4,1,0) -> 0 | G24: =IF('Ввод КР'!G29=$G$4,1,0) -> 0 | H24: =IF('Ввод КР'!H29=$H$4,1,0) -> 0 | I24: =IF('Ввод КР'!I29=$I$4,1,0) -> 0 | J24: =IF('Ввод КР'!J29=$J$4,1,0) -> 0 | K24: =IF('Ввод КР'!K29=$K$4,1,0) -> 0 | L24: =IF('Ввод КР'!L29=$L$4,1,0) -> 0 | M24: =IF('Ввод КР'!M29=$M$4,1,0) -> 0 | N24: =IF('Ввод КР'!N29=$N$4,1,0) -> 0 | O24: =IF('Ввод КР'!O29=$O$4,1,0) -> 0 | P24: =IF('Ввод КР'!P29=$P$4,1,0) -> 0 | Q24: =IF('Ввод КР'!Q29=$Q$4,1,0) -> 0 | R24: =IF('Ввод КР'!R29=$R$4,1,0) -> 0 | S24: =IF('Ввод КР'!S29=$S$4,1,0) -> 0 | T24: =IF('Ввод КР'!T29=$T$4,1,0) -> 0 | U24: =IF('Ввод КР'!U29=$U$4,1,0) -> 0 | V24: =IF('Ввод КР'!V29=$V$4,1,0) -> 0 | W24: =IF('Ввод КР'!W29=$W$4,1,0) -> 0 | X24: =IF('Ввод КР'!X29=$X$4,1,0) -> 0 | Y24: =IF('Ввод КР'!Y29=$Y$4,1,0) -> 0 | Z24: =IF('Ввод КР'!Z29=$Z$4,1,0) -> 0 | AA24: =IF('Ввод КР'!AA29=$AA$4,1,0) -> 0 | AB24: =IF('Результаты КР'!$J26=1,1,0) -> 0 | AC24: =IF('Результаты КР'!$J26=2,1,0) -> 0 | AD24: =IF('Результаты КР'!$J26=3,1,0) -> 0
A25: 21 | B25: =IF('Ввод КР'!B30>0,1,0) -> 0 | C25: =IF('Ввод КР'!C30=$C$4,1,0) -> 0 | D25: =IF('Ввод КР'!D30=$D$4,1,0) -> 0 | E25: =IF('Ввод КР'!E30=$E$4,1,0) -> 0 | F25: =IF('Ввод КР'!F30=$F$4,1,0) -> 0 | G25: =IF('Ввод КР'!G30=$G$4,1,0) -> 0 | H25: =IF('Ввод КР'!H30=$H$4,1,0) -> 0 | I25: =IF('Ввод КР'!I30=$I$4,1,0) -> 0 | J25: =IF('Ввод КР'!J30=$J$4,1,0) -> 0 | K25: =IF('Ввод КР'!K30=$K$4,1,0) -> 0 | L25: =IF('Ввод КР'!L30=$L$4,1,0) -> 0 | M25: =IF('Ввод КР'!M30=$M$4,1,0) -> 0 | N25: =IF('Ввод КР'!N30=$N$4,1,0) -> 0 | O25: =IF('Ввод КР'!O30=$O$4,1,0) -> 0 | P25: =IF('Ввод КР'!P30=$P$4,1,0) -> 0 | Q25: =IF('Ввод КР'!Q30=$Q$4,1,0) -> 0 | R25: =IF('Ввод КР'!R30=$R$4,1,0) -> 0 | S25: =IF('Ввод КР'!S30=$S$4,1,0) -> 0 | T25: =IF('Ввод КР'!T30=$T$4,1,0) -> 0 | U25: =IF('Ввод КР'!U30=$U$4,1,0) -> 0 | V25: =IF('Ввод КР'!V30=$V$4,1,0) -> 0 | W25: =IF('Ввод КР'!W30=$W$4,1,0) -> 0 | X25: =IF('Ввод КР'!X30=$X$4,1,0) -> 0 | Y25: =IF('Ввод КР'!Y30=$Y$4,1,0) -> 0 | Z25: =IF('Ввод КР'!Z30=$Z$4,1,0) -> 0 | AA25: =IF('Ввод КР'!AA30=$AA$4,1,0) -> 0 | AB25: =IF('Результаты КР'!$J27=1,1,0) -> 0 | AC25: =IF('Результаты КР'!$J27=2,1,0) -> 0 | AD25: =IF('Результаты КР'!$J27=3,1,0) -> 0
A26: 22 | B26: =IF('Ввод КР'!B31>0,1,0) -> 0 | C26: =IF('Ввод КР'!C31=$C$4,1,0) -> 0 | D26: =IF('Ввод КР'!D31=$D$4,1,0) -> 0 | E26: =IF('Ввод КР'!E31=$E$4,1,0) -> 0 | F26: =IF('Ввод КР'!F31=$F$4,1,0) -> 0 | G26: =IF('Ввод КР'!G31=$G$4,1,0) -> 0 | H26: =IF('Ввод КР'!H31=$H$4,1,0) -> 0 | I26: =IF('Ввод КР'!I31=$I$4,1,0) -> 0 | J26: =IF('Ввод КР'!J31=$J$4,1,0) -> 0 | K26: =IF('Ввод КР'!K31=$K$4,1,0) -> 0 | L26: =IF('Ввод КР'!L31=$L$4,1,0) -> 0 | M26: =IF('Ввод КР'!M31=$M$4,1,0) -> 0 | N26: =IF('Ввод КР'!N31=$N$4,1,0) -> 0 | O26: =IF('Ввод КР'!O31=$O$4,1,0) -> 0 | P26: =IF('Ввод КР'!P31=$P$4,1,0) -> 0 | Q26: =IF('Ввод КР'!Q31=$Q$4,1,0) -> 0 | R26: =IF('Ввод КР'!R31=$R$4,1,0) -> 0 | S26: =IF('Ввод КР'!S31=$S$4,1,0) -> 0 | T26: =IF('Ввод КР'!T31=$T$4,1,0) -> 0 | U26: =IF('Ввод КР'!U31=$U$4,1,0) -> 0 | V26: =IF('Ввод КР'!V31=$V$4,1,0) -> 0 | W26: =IF('Ввод КР'!W31=$W$4,1,0) -> 0 | X26: =IF('Ввод КР'!X31=$X$4,1,0) -> 0 | Y26: =IF('Ввод КР'!Y31=$Y$4,1,0) -> 0 | Z26: =IF('Ввод КР'!Z31=$Z$4,1,0) -> 0 | AA26: =IF('Ввод КР'!AA31=$AA$4,1,0) -> 0 | AB26: =IF('Результаты КР'!$J28=1,1,0) -> 0 | AC26: =IF('Результаты КР'!$J28=2,1,0) -> 0 | AD26: =IF('Результаты КР'!$J28=3,1,0) -> 0
A27: 23 | B27: =IF('Ввод КР'!B32>0,1,0) -> 0 | C27: =IF('Ввод КР'!C32=$C$4,1,0) -> 0 | D27: =IF('Ввод КР'!D32=$D$4,1,0) -> 0 | E27: =IF('Ввод КР'!E32=$E$4,1,0) -> 0 | F27: =IF('Ввод КР'!F32=$F$4,1,0) -> 0 | G27: =IF('Ввод КР'!G32=$G$4,1,0) -> 0 | H27: =IF('Ввод КР'!H32=$H$4,1,0) -> 0 | I27: =IF('Ввод КР'!I32=$I$4,1,0) -> 0 | J27: =IF('Ввод КР'!J32=$J$4,1,0) -> 0 | K27: =IF('Ввод КР'!K32=$K$4,1,0) -> 0 | L27: =IF('Ввод КР'!L32=$L$4,1,0) -> 0 | M27: =IF('Ввод КР'!M32=$M$4,1,0) -> 0 | N27: =IF('Ввод КР'!N32=$N$4,1,0) -> 0 | O27: =IF('Ввод КР'!O32=$O$4,1,0) -> 0 | P27: =IF('Ввод КР'!P32=$P$4,1,0) -> 0 | Q27: =IF('Ввод КР'!Q32=$Q$4,1,0) -> 0 | R27: =IF('Ввод КР'!R32=$R$4,1,0) -> 0 | S27: =IF('Ввод КР'!S32=$S$4,1,0) -> 0 | T27: =IF('Ввод КР'!T32=$T$4,1,0) -> 0 | U27: =IF('Ввод КР'!U32=$U$4,1,0) -> 0 | V27: =IF('Ввод КР'!V32=$V$4,1,0) -> 0 | W27: =IF('Ввод КР'!W32=$W$4,1,0) -> 0 | X27: =IF('Ввод КР'!X32=$X$4,1,0) -> 0 | Y27: =IF('Ввод КР'!Y32=$Y$4,1,0) -> 0 | Z27: =IF('Ввод КР'!Z32=$Z$4,1,0) -> 0 | AA27: =IF('Ввод КР'!AA32=$AA$4,1,0) -> 0 | AB27: =IF('Результаты КР'!$J29=1,1,0) -> 0 | AC27: =IF('Результаты КР'!$J29=2,1,0) -> 0 | AD27: =IF('Результаты КР'!$J29=3,1,0) -> 0
A28: 24 | B28: =IF('Ввод КР'!B33>0,1,0) -> 0 | C28: =IF('Ввод КР'!C33=$C$4,1,0) -> 0 | D28: =IF('Ввод КР'!D33=$D$4,1,0) -> 0 | E28: =IF('Ввод КР'!E33=$E$4,1,0) -> 0 | F28: =IF('Ввод КР'!F33=$F$4,1,0) -> 0 | G28: =IF('Ввод КР'!G33=$G$4,1,0) -> 0 | H28: =IF('Ввод КР'!H33=$H$4,1,0) -> 0 | I28: =IF('Ввод КР'!I33=$I$4,1,0) -> 0 | J28: =IF('Ввод КР'!J33=$J$4,1,0) -> 0 | K28: =IF('Ввод КР'!K33=$K$4,1,0) -> 0 | L28: =IF('Ввод КР'!L33=$L$4,1,0) -> 0 | M28: =IF('Ввод КР'!M33=$M$4,1,0) -> 0 | N28: =IF('Ввод КР'!N33=$N$4,1,0) -> 0 | O28: =IF('Ввод КР'!O33=$O$4,1,0) -> 0 | P28: =IF('Ввод КР'!P33=$P$4,1,0) -> 0 | Q28: =IF('Ввод КР'!Q33=$Q$4,1,0) -> 0 | R28: =IF('Ввод КР'!R33=$R$4,1,0) -> 0 | S28: =IF('Ввод КР'!S33=$S$4,1,0) -> 0 | T28: =IF('Ввод КР'!T33=$T$4,1,0) -> 0 | U28: =IF('Ввод КР'!U33=$U$4,1,0) -> 0 | V28: =IF('Ввод КР'!V33=$V$4,1,0) -> 0 | W28: =IF('Ввод КР'!W33=$W$4,1,0) -> 0 | X28: =IF('Ввод КР'!X33=$X$4,1,0) -> 0 | Y28: =IF('Ввод КР'!Y33=$Y$4,1,0) -> 0 | Z28: =IF('Ввод КР'!Z33=$Z$4,1,0) -> 0 | AA28: =IF('Ввод КР'!AA33=$AA$4,1,0) -> 0 | AB28: =IF('Результаты КР'!$J30=1,1,0) -> 0 | AC28: =IF('Результаты КР'!$J30=2,1,0) -> 0 | AD28: =IF('Результаты КР'!$J30=3,1,0) -> 0
A29: 25 | B29: =IF('Ввод КР'!B34>0,1,0) -> 0 | C29: =IF('Ввод КР'!C34=$C$4,1,0) -> 0 | D29: =IF('Ввод КР'!D34=$D$4,1,0) -> 0 | E29: =IF('Ввод КР'!E34=$E$4,1,0) -> 0 | F29: =IF('Ввод КР'!F34=$F$4,1,0) -> 0 | G29: =IF('Ввод КР'!G34=$G$4,1,0) -> 0 | H29: =IF('Ввод КР'!H34=$H$4,1,0) -> 0 | I29: =IF('Ввод КР'!I34=$I$4,1,0) -> 0 | J29: =IF('Ввод КР'!J34=$J$4,1,0) -> 0 | K29: =IF('Ввод КР'!K34=$K$4,1,0) -> 0 | L29: =IF('Ввод КР'!L34=$L$4,1,0) -> 0 | M29: =IF('Ввод КР'!M34=$M$4,1,0) -> 0 | N29: =IF('Ввод КР'!N34=$N$4,1,0) -> 0 | O29: =IF('Ввод КР'!O34=$O$4,1,0) -> 0 | P29: =IF('Ввод КР'!P34=$P$4,1,0) -> 0 | Q29: =IF('Ввод КР'!Q34=$Q$4,1,0) -> 0 | R29: =IF('Ввод КР'!R34=$R$4,1,0) -> 0 | S29: =IF('Ввод КР'!S34=$S$4,1,0) -> 0 | T29: =IF('Ввод КР'!T34=$T$4,1,0) -> 0 | U29: =IF('Ввод КР'!U34=$U$4,1,0) -> 0 | V29: =IF('Ввод КР'!V34=$V$4,1,0) -> 0 | W29: =IF('Ввод КР'!W34=$W$4,1,0) -> 0 | X29: =IF('Ввод КР'!X34=$X$4,1,0) -> 0 | Y29: =IF('Ввод КР'!Y34=$Y$4,1,0) -> 0 | Z29: =IF('Ввод КР'!Z34=$Z$4,1,0) -> 0 | AA29: =IF('Ввод КР'!AA34=$AA$4,1,0) -> 0 | AB29: =IF('Результаты КР'!$J31=1,1,0) -> 0 | AC29: =IF('Результаты КР'!$J31=2,1,0) -> 0 | AD29: =IF('Результаты КР'!$J31=3,1,0) -> 0
A30: 26 | B30: =IF('Ввод КР'!B35>0,1,0) -> 0 | C30: =IF('Ввод КР'!C35=$C$4,1,0) -> 0 | D30: =IF('Ввод КР'!D35=$D$4,1,0) -> 0 | E30: =IF('Ввод КР'!E35=$E$4,1,0) -> 0 | F30: =IF('Ввод КР'!F35=$F$4,1,0) -> 0 | G30: =IF('Ввод КР'!G35=$G$4,1,0) -> 0 | H30: =IF('Ввод КР'!H35=$H$4,1,0) -> 0 | I30: =IF('Ввод КР'!I35=$I$4,1,0) -> 0 | J30: =IF('Ввод КР'!J35=$J$4,1,0) -> 0 | K30: =IF('Ввод КР'!K35=$K$4,1,0) -> 0 | L30: =IF('Ввод КР'!L35=$L$4,1,0) -> 0 | M30: =IF('Ввод КР'!M35=$M$4,1,0) -> 0 | N30: =IF('Ввод КР'!N35=$N$4,1,0) -> 0 | O30: =IF('Ввод КР'!O35=$O$4,1,0) -> 0 | P30: =IF('Ввод КР'!P35=$P$4,1,0) -> 0 | Q30: =IF('Ввод КР'!Q35=$Q$4,1,0) -> 0 | R30: =IF('Ввод КР'!R35=$R$4,1,0) -> 0 | S30: =IF('Ввод КР'!S35=$S$4,1,0) -> 0 | T30: =IF('Ввод КР'!T35=$T$4,1,0) -> 0 | U30: =IF('Ввод КР'!U35=$U$4,1,0) -> 0 | V30: =IF('Ввод КР'!V35=$V$4,1,0) -> 0 | W30: =IF('Ввод КР'!W35=$W$4,1,0) -> 0 | X30: =IF('Ввод КР'!X35=$X$4,1,0) -> 0 | Y30: =IF('Ввод КР'!Y35=$Y$4,1,0) -> 0 | Z30: =IF('Ввод КР'!Z35=$Z$4,1,0) -> 0 | AA30: =IF('Ввод КР'!AA35=$AA$4,1,0) -> 0 | AB30: =IF('Результаты КР'!$J32=1,1,0) -> 0 | AC30: =IF('Результаты КР'!$J32=2,1,0) -> 0 | AD30: =IF('Результаты КР'!$J32=3,1,0) -> 0
A31: 27 | B31: =IF('Ввод КР'!B36>0,1,0) -> 0 | C31: =IF('Ввод КР'!C36=$C$4,1,0) -> 0 | D31: =IF('Ввод КР'!D36=$D$4,1,0) -> 0 | E31: =IF('Ввод КР'!E36=$E$4,1,0) -> 0 | F31: =IF('Ввод КР'!F36=$F$4,1,0) -> 0 | G31: =IF('Ввод КР'!G36=$G$4,1,0) -> 0 | H31: =IF('Ввод КР'!H36=$H$4,1,0) -> 0 | I31: =IF('Ввод КР'!I36=$I$4,1,0) -> 0 | J31: =IF('Ввод КР'!J36=$J$4,1,0) -> 0 | K31: =IF('Ввод КР'!K36=$K$4,1,0) -> 0 | L31: =IF('Ввод КР'!L36=$L$4,1,0) -> 0 | M31: =IF('Ввод КР'!M36=$M$4,1,0) -> 0 | N31: =IF('Ввод КР'!N36=$N$4,1,0) -> 0 | O31: =IF('Ввод КР'!O36=$O$4,1,0) -> 0 | P31: =IF('Ввод КР'!P36=$P$4,1,0) -> 0 | Q31: =IF('Ввод КР'!Q36=$Q$4,1,0) -> 0 | R31: =IF('Ввод КР'!R36=$R$4,1,0) -> 0 | S31: =IF('Ввод КР'!S36=$S$4,1,0) -> 0 | T31: =IF('Ввод КР'!T36=$T$4,1,0) -> 0 | U31: =IF('Ввод КР'!U36=$U$4,1,0) -> 0 | V31: =IF('Ввод КР'!V36=$V$4,1,0) -> 0 | W31: =IF('Ввод КР'!W36=$W$4,1,0) -> 0 | X31: =IF('Ввод КР'!X36=$X$4,1,0) -> 0 | Y31: =IF('Ввод КР'!Y36=$Y$4,1,0) -> 0 | Z31: =IF('Ввод КР'!Z36=$Z$4,1,0) -> 0 | AA31: =IF('Ввод КР'!AA36=$AA$4,1,0) -> 0 | AB31: =IF('Результаты КР'!$J33=1,1,0) -> 0 | AC31: =IF('Результаты КР'!$J33=2,1,0) -> 0 | AD31: =IF('Результаты КР'!$J33=3,1,0) -> 0
A32: 28 | B32: =IF('Ввод КР'!B37>0,1,0) -> 0 | C32: =IF('Ввод КР'!C37=$C$4,1,0) -> 0 | D32: =IF('Ввод КР'!D37=$D$4,1,0) -> 0 | E32: =IF('Ввод КР'!E37=$E$4,1,0) -> 0 | F32: =IF('Ввод КР'!F37=$F$4,1,0) -> 0 | G32: =IF('Ввод КР'!G37=$G$4,1,0) -> 0 | H32: =IF('Ввод КР'!H37=$H$4,1,0) -> 0 | I32: =IF('Ввод КР'!I37=$I$4,1,0) -> 0 | J32: =IF('Ввод КР'!J37=$J$4,1,0) -> 0 | K32: =IF('Ввод КР'!K37=$K$4,1,0) -> 0 | L32: =IF('Ввод КР'!L37=$L$4,1,0) -> 0 | M32: =IF('Ввод КР'!M37=$M$4,1,0) -> 0 | N32: =IF('Ввод КР'!N37=$N$4,1,0) -> 0 | O32: =IF('Ввод КР'!O37=$O$4,1,0) -> 0 | P32: =IF('Ввод КР'!P37=$P$4,1,0) -> 0 | Q32: =IF('Ввод КР'!Q37=$Q$4,1,0) -> 0 | R32: =IF('Ввод КР'!R37=$R$4,1,0) -> 0 | S32: =IF('Ввод КР'!S37=$S$4,1,0) -> 0 | T32: =IF('Ввод КР'!T37=$T$4,1,0) -> 0 | U32: =IF('Ввод КР'!U37=$U$4,1,0) -> 0 | V32: =IF('Ввод КР'!V37=$V$4,1,0) -> 0 | W32: =IF('Ввод КР'!W37=$W$4,1,0) -> 0 | X32: =IF('Ввод КР'!X37=$X$4,1,0) -> 0 | Y32: =IF('Ввод КР'!Y37=$Y$4,1,0) -> 0 | Z32: =IF('Ввод КР'!Z37=$Z$4,1,0) -> 0 | AA32: =IF('Ввод КР'!AA37=$AA$4,1,0) -> 0 | AB32: =IF('Результаты КР'!$J34=1,1,0) -> 0 | AC32: =IF('Результаты КР'!$J34=2,1,0) -> 0 | AD32: =IF('Результаты КР'!$J34=3,1,0) -> 0
A33: 29 | B33: =IF('Ввод КР'!B38>0,1,0) -> 0 | C33: =IF('Ввод КР'!C38=$C$4,1,0) -> 0 | D33: =IF('Ввод КР'!D38=$D$4,1,0) -> 0 | E33: =IF('Ввод КР'!E38=$E$4,1,0) -> 0 | F33: =IF('Ввод КР'!F38=$F$4,1,0) -> 0 | G33: =IF('Ввод КР'!G38=$G$4,1,0) -> 0 | H33: =IF('Ввод КР'!H38=$H$4,1,0) -> 0 | I33: =IF('Ввод КР'!I38=$I$4,1,0) -> 0 | J33: =IF('Ввод КР'!J38=$J$4,1,0) -> 0 | K33: =IF('Ввод КР'!K38=$K$4,1,0) -> 0 | L33: =IF('Ввод КР'!L38=$L$4,1,0) -> 0 | M33: =IF('Ввод КР'!M38=$M$4,1,0) -> 0 | N33: =IF('Ввод КР'!N38=$N$4,1,0) -> 0 | O33: =IF('Ввод КР'!O38=$O$4,1,0) -> 0 | P33: =IF('Ввод КР'!P38=$P$4,1,0) -> 0 | Q33: =IF('Ввод КР'!Q38=$Q$4,1,0) -> 0 | R33: =IF('Ввод КР'!R38=$R$4,1,0) -> 0 | S33: =IF('Ввод КР'!S38=$S$4,1,0) -> 0 | T33: =IF('Ввод КР'!T38=$T$4,1,0) -> 0 | U33: =IF('Ввод КР'!U38=$U$4,1,0) -> 0 | V33: =IF('Ввод КР'!V38=$V$4,1,0) -> 0 | W33: =IF('Ввод КР'!W38=$W$4,1,0) -> 0 | X33: =IF('Ввод КР'!X38=$X$4,1,0) -> 0 | Y33: =IF('Ввод КР'!Y38=$Y$4,1,0) -> 0 | Z33: =IF('Ввод КР'!Z38=$Z$4,1,0) -> 0 | AA33: =IF('Ввод КР'!AA38=$AA$4,1,0) -> 0 | AB33: =IF('Результаты КР'!$J35=1,1,0) -> 0 | AC33: =IF('Результаты КР'!$J35=2,1,0) -> 0 | AD33: =IF('Результаты КР'!$J35=3,1,0) -> 0
A34: 30 | B34: =IF('Ввод КР'!B39>0,1,0) -> 0 | C34: =IF('Ввод КР'!C39=$C$4,1,0) -> 0 | D34: =IF('Ввод КР'!D39=$D$4,1,0) -> 0 | E34: =IF('Ввод КР'!E39=$E$4,1,0) -> 0 | F34: =IF('Ввод КР'!F39=$F$4,1,0) -> 0 | G34: =IF('Ввод КР'!G39=$G$4,1,0) -> 0 | H34: =IF('Ввод КР'!H39=$H$4,1,0) -> 0 | I34: =IF('Ввод КР'!I39=$I$4,1,0) -> 0 | J34: =IF('Ввод КР'!J39=$J$4,1,0) -> 0 | K34: =IF('Ввод КР'!K39=$K$4,1,0) -> 0 | L34: =IF('Ввод КР'!L39=$L$4,1,0) -> 0 | M34: =IF('Ввод КР'!M39=$M$4,1,0) -> 0 | N34: =IF('Ввод КР'!N39=$N$4,1,0) -> 0 | O34: =IF('Ввод КР'!O39=$O$4,1,0) -> 0 | P34: =IF('Ввод КР'!P39=$P$4,1,0) -> 0 | Q34: =IF('Ввод КР'!Q39=$Q$4,1,0) -> 0 | R34: =IF('Ввод КР'!R39=$R$4,1,0) -> 0 | S34: =IF('Ввод КР'!S39=$S$4,1,0) -> 0 | T34: =IF('Ввод КР'!T39=$T$4,1,0) -> 0 | U34: =IF('Ввод КР'!U39=$U$4,1,0) -> 0 | V34: =IF('Ввод КР'!V39=$V$4,1,0) -> 0 | W34: =IF('Ввод КР'!W39=$W$4,1,0) -> 0 | X34: =IF('Ввод КР'!X39=$X$4,1,0) -> 0 | Y34: =IF('Ввод КР'!Y39=$Y$4,1,0) -> 0 | Z34: =IF('Ввод КР'!Z39=$Z$4,1,0) -> 0 | AA34: =IF('Ввод КР'!AA39=$AA$4,1,0) -> 0 | AB34: =IF('Результаты КР'!$J36=1,1,0) -> 0 | AC34: =IF('Результаты КР'!$J36=2,1,0) -> 0 | AD34: =IF('Результаты КР'!$J36=3,1,0) -> 0
A35: 31 | B35: =IF('Ввод КР'!B40>0,1,0) -> 0 | C35: =IF('Ввод КР'!C40=$C$4,1,0) -> 0 | D35: =IF('Ввод КР'!D40=$D$4,1,0) -> 0 | E35: =IF('Ввод КР'!E40=$E$4,1,0) -> 0 | F35: =IF('Ввод КР'!F40=$F$4,1,0) -> 0 | G35: =IF('Ввод КР'!G40=$G$4,1,0) -> 0 | H35: =IF('Ввод КР'!H40=$H$4,1,0) -> 0 | I35: =IF('Ввод КР'!I40=$I$4,1,0) -> 0 | J35: =IF('Ввод КР'!J40=$J$4,1,0) -> 0 | K35: =IF('Ввод КР'!K40=$K$4,1,0) -> 0 | L35: =IF('Ввод КР'!L40=$L$4,1,0) -> 0 | M35: =IF('Ввод КР'!M40=$M$4,1,0) -> 0 | N35: =IF('Ввод КР'!N40=$N$4,1,0) -> 0 | O35: =IF('Ввод КР'!O40=$O$4,1,0) -> 0 | P35: =IF('Ввод КР'!P40=$P$4,1,0) -> 0 | Q35: =IF('Ввод КР'!Q40=$Q$4,1,0) -> 0 | R35: =IF('Ввод КР'!R40=$R$4,1,0) -> 0 | S35: =IF('Ввод КР'!S40=$S$4,1,0) -> 0 | T35: =IF('Ввод КР'!T40=$T$4,1,0) -> 0 | U35: =IF('Ввод КР'!U40=$U$4,1,0) -> 0 | V35: =IF('Ввод КР'!V40=$V$4,1,0) -> 0 | W35: =IF('Ввод КР'!W40=$W$4,1,0) -> 0 | X35: =IF('Ввод КР'!X40=$X$4,1,0) -> 0 | Y35: =IF('Ввод КР'!Y40=$Y$4,1,0) -> 0 | Z35: =IF('Ввод КР'!Z40=$Z$4,1,0) -> 0 | AA35: =IF('Ввод КР'!AA40=$AA$4,1,0) -> 0 | AB35: =IF('Результаты КР'!$J37=1,1,0) -> 0 | AC35: =IF('Результаты КР'!$J37=2,1,0) -> 0 | AD35: =IF('Результаты КР'!$J37=3,1,0) -> 0
A36: 32 | B36: =IF('Ввод КР'!B41>0,1,0) -> 0 | C36: =IF('Ввод КР'!C41=$C$4,1,0) -> 0 | D36: =IF('Ввод КР'!D41=$D$4,1,0) -> 0 | E36: =IF('Ввод КР'!E41=$E$4,1,0) -> 0 | F36: =IF('Ввод КР'!F41=$F$4,1,0) -> 0 | G36: =IF('Ввод КР'!G41=$G$4,1,0) -> 0 | H36: =IF('Ввод КР'!H41=$H$4,1,0) -> 0 | I36: =IF('Ввод КР'!I41=$I$4,1,0) -> 0 | J36: =IF('Ввод КР'!J41=$J$4,1,0) -> 0 | K36: =IF('Ввод КР'!K41=$K$4,1,0) -> 0 | L36: =IF('Ввод КР'!L41=$L$4,1,0) -> 0 | M36: =IF('Ввод КР'!M41=$M$4,1,0) -> 0 | N36: =IF('Ввод КР'!N41=$N$4,1,0) -> 0 | O36: =IF('Ввод КР'!O41=$O$4,1,0) -> 0 | P36: =IF('Ввод КР'!P41=$P$4,1,0) -> 0 | Q36: =IF('Ввод КР'!Q41=$Q$4,1,0) -> 0 | R36: =IF('Ввод КР'!R41=$R$4,1,0) -> 0 | S36: =IF('Ввод КР'!S41=$S$4,1,0) -> 0 | T36: =IF('Ввод КР'!T41=$T$4,1,0) -> 0 | U36: =IF('Ввод КР'!U41=$U$4,1,0) -> 0 | V36: =IF('Ввод КР'!V41=$V$4,1,0) -> 0 | W36: =IF('Ввод КР'!W41=$W$4,1,0) -> 0 | X36: =IF('Ввод КР'!X41=$X$4,1,0) -> 0 | Y36: =IF('Ввод КР'!Y41=$Y$4,1,0) -> 0 | Z36: =IF('Ввод КР'!Z41=$Z$4,1,0) -> 0 | AA36: =IF('Ввод КР'!AA41=$AA$4,1,0) -> 0 | AB36: =IF('Результаты КР'!$J38=1,1,0) -> 0 | AC36: =IF('Результаты КР'!$J38=2,1,0) -> 0 | AD36: =IF('Результаты КР'!$J38=3,1,0) -> 0
A37: 33 | B37: =IF('Ввод КР'!B42>0,1,0) -> 0 | C37: =IF('Ввод КР'!C42=$C$4,1,0) -> 0 | D37: =IF('Ввод КР'!D42=$D$4,1,0) -> 0 | E37: =IF('Ввод КР'!E42=$E$4,1,0) -> 0 | F37: =IF('Ввод КР'!F42=$F$4,1,0) -> 0 | G37: =IF('Ввод КР'!G42=$G$4,1,0) -> 0 | H37: =IF('Ввод КР'!H42=$H$4,1,0) -> 0 | I37: =IF('Ввод КР'!I42=$I$4,1,0) -> 0 | J37: =IF('Ввод КР'!J42=$J$4,1,0) -> 0 | K37: =IF('Ввод КР'!K42=$K$4,1,0) -> 0 | L37: =IF('Ввод КР'!L42=$L$4,1,0) -> 0 | M37: =IF('Ввод КР'!M42=$M$4,1,0) -> 0 | N37: =IF('Ввод КР'!N42=$N$4,1,0) -> 0 | O37: =IF('Ввод КР'!O42=$O$4,1,0) -> 0 | P37: =IF('Ввод КР'!P42=$P$4,1,0) -> 0 | Q37: =IF('Ввод КР'!Q42=$Q$4,1,0) -> 0 | R37: =IF('Ввод КР'!R42=$R$4,1,0) -> 0 | S37: =IF('Ввод КР'!S42=$S$4,1,0) -> 0 | T37: =IF('Ввод КР'!T42=$T$4,1,0) -> 0 | U37: =IF('Ввод КР'!U42=$U$4,1,0) -> 0 | V37: =IF('Ввод КР'!V42=$V$4,1,0) -> 0 | W37: =IF('Ввод КР'!W42=$W$4,1,0) -> 0 | X37: =IF('Ввод КР'!X42=$X$4,1,0) -> 0 | Y37: =IF('Ввод КР'!Y42=$Y$4,1,0) -> 0 | Z37: =IF('Ввод КР'!Z42=$Z$4,1,0) -> 0 | AA37: =IF('Ввод КР'!AA42=$AA$4,1,0) -> 0 | AB37: =IF('Результаты КР'!$J39=1,1,0) -> 0 | AC37: =IF('Результаты КР'!$J39=2,1,0) -> 0 | AD37: =IF('Результаты КР'!$J39=3,1,0) -> 0
A38: 34 | B38: =IF('Ввод КР'!B43>0,1,0) -> 0 | C38: =IF('Ввод КР'!C43=$C$4,1,0) -> 0 | D38: =IF('Ввод КР'!D43=$D$4,1,0) -> 0 | E38: =IF('Ввод КР'!E43=$E$4,1,0) -> 0 | F38: =IF('Ввод КР'!F43=$F$4,1,0) -> 0 | G38: =IF('Ввод КР'!G43=$G$4,1,0) -> 0 | H38: =IF('Ввод КР'!H43=$H$4,1,0) -> 0 | I38: =IF('Ввод КР'!I43=$I$4,1,0) -> 0 | J38: =IF('Ввод КР'!J43=$J$4,1,0) -> 0 | K38: =IF('Ввод КР'!K43=$K$4,1,0) -> 0 | L38: =IF('Ввод КР'!L43=$L$4,1,0) -> 0 | M38: =IF('Ввод КР'!M43=$M$4,1,0) -> 0 | N38: =IF('Ввод КР'!N43=$N$4,1,0) -> 0 | O38: =IF('Ввод КР'!O43=$O$4,1,0) -> 0 | P38: =IF('Ввод КР'!P43=$P$4,1,0) -> 0 | Q38: =IF('Ввод КР'!Q43=$Q$4,1,0) -> 0 | R38: =IF('Ввод КР'!R43=$R$4,1,0) -> 0 | S38: =IF('Ввод КР'!S43=$S$4,1,0) -> 0 | T38: =IF('Ввод КР'!T43=$T$4,1,0) -> 0 | U38: =IF('Ввод КР'!U43=$U$4,1,0) -> 0 | V38: =IF('Ввод КР'!V43=$V$4,1,0) -> 0 | W38: =IF('Ввод КР'!W43=$W$4,1,0) -> 0 | X38: =IF('Ввод КР'!X43=$X$4,1,0) -> 0 | Y38: =IF('Ввод КР'!Y43=$Y$4,1,0) -> 0 | Z38: =IF('Ввод КР'!Z43=$Z$4,1,0) -> 0 | AA38: =IF('Ввод КР'!AA43=$AA$4,1,0) -> 0 | AB38: =IF('Результаты КР'!$J40=1,1,0) -> 0 | AC38: =IF('Результаты КР'!$J40=2,1,0) -> 0 | AD38: =IF('Результаты КР'!$J40=3,1,0) -> 0
A39: 35 | B39: =IF('Ввод КР'!B44>0,1,0) -> 0 | C39: =IF('Ввод КР'!C44=$C$4,1,0) -> 0 | D39: =IF('Ввод КР'!D44=$D$4,1,0) -> 0 | E39: =IF('Ввод КР'!E44=$E$4,1,0) -> 0 | F39: =IF('Ввод КР'!F44=$F$4,1,0) -> 0 | G39: =IF('Ввод КР'!G44=$G$4,1,0) -> 0 | H39: =IF('Ввод КР'!H44=$H$4,1,0) -> 0 | I39: =IF('Ввод КР'!I44=$I$4,1,0) -> 0 | J39: =IF('Ввод КР'!J44=$J$4,1,0) -> 0 | K39: =IF('Ввод КР'!K44=$K$4,1,0) -> 0 | L39: =IF('Ввод КР'!L44=$L$4,1,0) -> 0 | M39: =IF('Ввод КР'!M44=$M$4,1,0) -> 0 | N39: =IF('Ввод КР'!N44=$N$4,1,0) -> 0 | O39: =IF('Ввод КР'!O44=$O$4,1,0) -> 0 | P39: =IF('Ввод КР'!P44=$P$4,1,0) -> 0 | Q39: =IF('Ввод КР'!Q44=$Q$4,1,0) -> 0 | R39: =IF('Ввод КР'!R44=$R$4,1,0) -> 0 | S39: =IF('Ввод КР'!S44=$S$4,1,0) -> 0 | T39: =IF('Ввод КР'!T44=$T$4,1,0) -> 0 | U39: =IF('Ввод КР'!U44=$U$4,1,0) -> 0 | V39: =IF('Ввод КР'!V44=$V$4,1,0) -> 0 | W39: =IF('Ввод КР'!W44=$W$4,1,0) -> 0 | X39: =IF('Ввод КР'!X44=$X$4,1,0) -> 0 | Y39: =IF('Ввод КР'!Y44=$Y$4,1,0) -> 0 | Z39: =IF('Ввод КР'!Z44=$Z$4,1,0) -> 0 | AA39: =IF('Ввод КР'!AA44=$AA$4,1,0) -> 0 | AB39: =IF('Результаты КР'!$J41=1,1,0) -> 0 | AC39: =IF('Результаты КР'!$J41=2,1,0) -> 0 | AD39: =IF('Результаты КР'!$J41=3,1,0) -> 0
A40: 36 | B40: =IF('Ввод КР'!B45>0,1,0) -> 0 | C40: =IF('Ввод КР'!C45=$C$4,1,0) -> 0 | D40: =IF('Ввод КР'!D45=$D$4,1,0) -> 0 | E40: =IF('Ввод КР'!E45=$E$4,1,0) -> 0 | F40: =IF('Ввод КР'!F45=$F$4,1,0) -> 0 | G40: =IF('Ввод КР'!G45=$G$4,1,0) -> 0 | H40: =IF('Ввод КР'!H45=$H$4,1,0) -> 0 | I40: =IF('Ввод КР'!I45=$I$4,1,0) -> 0 | J40: =IF('Ввод КР'!J45=$J$4,1,0) -> 0 | K40: =IF('Ввод КР'!K45=$K$4,1,0) -> 0 | L40: =IF('Ввод КР'!L45=$L$4,1,0) -> 0 | M40: =IF('Ввод КР'!M45=$M$4,1,0) -> 0 | N40: =IF('Ввод КР'!N45=$N$4,1,0) -> 0 | O40: =IF('Ввод КР'!O45=$O$4,1,0) -> 0 | P40: =IF('Ввод КР'!P45=$P$4,1,0) -> 0 | Q40: =IF('Ввод КР'!Q45=$Q$4,1,0) -> 0 | R40: =IF('Ввод КР'!R45=$R$4,1,0) -> 0 | S40: =IF('Ввод КР'!S45=$S$4,1,0) -> 0 | T40: =IF('Ввод КР'!T45=$T$4,1,0) -> 0 | U40: =IF('Ввод КР'!U45=$U$4,1,0) -> 0 | V40: =IF('Ввод КР'!V45=$V$4,1,0) -> 0 | W40: =IF('Ввод КР'!W45=$W$4,1,0) -> 0 | X40: =IF('Ввод КР'!X45=$X$4,1,0) -> 0 | Y40: =IF('Ввод КР'!Y45=$Y$4,1,0) -> 0 | Z40: =IF('Ввод КР'!Z45=$Z$4,1,0) -> 0 | AA40: =IF('Ввод КР'!AA45=$AA$4,1,0) -> 0 | AB40: =IF('Результаты КР'!$J42=1,1,0) -> 0 | AC40: =IF('Результаты КР'!$J42=2,1,0) -> 0 | AD40: =IF('Результаты КР'!$J42=3,1,0) -> 0
A41: 37 | B41: =IF('Ввод КР'!B46>0,1,0) -> 0 | C41: =IF('Ввод КР'!C46=$C$4,1,0) -> 0 | D41: =IF('Ввод КР'!D46=$D$4,1,0) -> 0 | E41: =IF('Ввод КР'!E46=$E$4,1,0) -> 0 | F41: =IF('Ввод КР'!F46=$F$4,1,0) -> 0 | G41: =IF('Ввод КР'!G46=$G$4,1,0) -> 0 | H41: =IF('Ввод КР'!H46=$H$4,1,0) -> 0 | I41: =IF('Ввод КР'!I46=$I$4,1,0) -> 0 | J41: =IF('Ввод КР'!J46=$J$4,1,0) -> 0 | K41: =IF('Ввод КР'!K46=$K$4,1,0) -> 0 | L41: =IF('Ввод КР'!L46=$L$4,1,0) -> 0 | M41: =IF('Ввод КР'!M46=$M$4,1,0) -> 0 | N41: =IF('Ввод КР'!N46=$N$4,1,0) -> 0 | O41: =IF('Ввод КР'!O46=$O$4,1,0) -> 0 | P41: =IF('Ввод КР'!P46=$P$4,1,0) -> 0 | Q41: =IF('Ввод КР'!Q46=$Q$4,1,0) -> 0 | R41: =IF('Ввод КР'!R46=$R$4,1,0) -> 0 | S41: =IF('Ввод КР'!S46=$S$4,1,0) -> 0 | T41: =IF('Ввод КР'!T46=$T$4,1,0) -> 0 | U41: =IF('Ввод КР'!U46=$U$4,1,0) -> 0 | V41: =IF('Ввод КР'!V46=$V$4,1,0) -> 0 | W41: =IF('Ввод КР'!W46=$W$4,1,0) -> 0 | X41: =IF('Ввод КР'!X46=$X$4,1,0) -> 0 | Y41: =IF('Ввод КР'!Y46=$Y$4,1,0) -> 0 | Z41: =IF('Ввод КР'!Z46=$Z$4,1,0) -> 0 | AA41: =IF('Ввод КР'!AA46=$AA$4,1,0) -> 0 | AB41: =IF('Результаты КР'!$J43=1,1,0) -> 0 | AC41: =IF('Результаты КР'!$J43=2,1,0) -> 0 | AD41: =IF('Результаты КР'!$J43=3,1,0) -> 0
A42: 38 | B42: =IF('Ввод КР'!B47>0,1,0) -> 0 | C42: =IF('Ввод КР'!C47=$C$4,1,0) -> 0 | D42: =IF('Ввод КР'!D47=$D$4,1,0) -> 0 | E42: =IF('Ввод КР'!E47=$E$4,1,0) -> 0 | F42: =IF('Ввод КР'!F47=$F$4,1,0) -> 0 | G42: =IF('Ввод КР'!G47=$G$4,1,0) -> 0 | H42: =IF('Ввод КР'!H47=$H$4,1,0) -> 0 | I42: =IF('Ввод КР'!I47=$I$4,1,0) -> 0 | J42: =IF('Ввод КР'!J47=$J$4,1,0) -> 0 | K42: =IF('Ввод КР'!K47=$K$4,1,0) -> 0 | L42: =IF('Ввод КР'!L47=$L$4,1,0) -> 0 | M42: =IF('Ввод КР'!M47=$M$4,1,0) -> 0 | N42: =IF('Ввод КР'!N47=$N$4,1,0) -> 0 | O42: =IF('Ввод КР'!O47=$O$4,1,0) -> 0 | P42: =IF('Ввод КР'!P47=$P$4,1,0) -> 0 | Q42: =IF('Ввод КР'!Q47=$Q$4,1,0) -> 0 | R42: =IF('Ввод КР'!R47=$R$4,1,0) -> 0 | S42: =IF('Ввод КР'!S47=$S$4,1,0) -> 0 | T42: =IF('Ввод КР'!T47=$T$4,1,0) -> 0 | U42: =IF('Ввод КР'!U47=$U$4,1,0) -> 0 | V42: =IF('Ввод КР'!V47=$V$4,1,0) -> 0 | W42: =IF('Ввод КР'!W47=$W$4,1,0) -> 0 | X42: =IF('Ввод КР'!X47=$X$4,1,0) -> 0 | Y42: =IF('Ввод КР'!Y47=$Y$4,1,0) -> 0 | Z42: =IF('Ввод КР'!Z47=$Z$4,1,0) -> 0 | AA42: =IF('Ввод КР'!AA47=$AA$4,1,0) -> 0 | AB42: =IF('Результаты КР'!$J44=1,1,0) -> 0 | AC42: =IF('Результаты КР'!$J44=2,1,0) -> 0 | AD42: =IF('Результаты КР'!$J44=3,1,0) -> 0
A43: 39 | B43: =IF('Ввод КР'!B48>0,1,0) -> 0 | C43: =IF('Ввод КР'!C48=$C$4,1,0) -> 0 | D43: =IF('Ввод КР'!D48=$D$4,1,0) -> 0 | E43: =IF('Ввод КР'!E48=$E$4,1,0) -> 0 | F43: =IF('Ввод КР'!F48=$F$4,1,0) -> 0 | G43: =IF('Ввод КР'!G48=$G$4,1,0) -> 0 | H43: =IF('Ввод КР'!H48=$H$4,1,0) -> 0 | I43: =IF('Ввод КР'!I48=$I$4,1,0) -> 0 | J43: =IF('Ввод КР'!J48=$J$4,1,0) -> 0 | K43: =IF('Ввод КР'!K48=$K$4,1,0) -> 0 | L43: =IF('Ввод КР'!L48=$L$4,1,0) -> 0 | M43: =IF('Ввод КР'!M48=$M$4,1,0) -> 0 | N43: =IF('Ввод КР'!N48=$N$4,1,0) -> 0 | O43: =IF('Ввод КР'!O48=$O$4,1,0) -> 0 | P43: =IF('Ввод КР'!P48=$P$4,1,0) -> 0 | Q43: =IF('Ввод КР'!Q48=$Q$4,1,0) -> 0 | R43: =IF('Ввод КР'!R48=$R$4,1,0) -> 0 | S43: =IF('Ввод КР'!S48=$S$4,1,0) -> 0 | T43: =IF('Ввод КР'!T48=$T$4,1,0) -> 0 | U43: =IF('Ввод КР'!U48=$U$4,1,0) -> 0 | V43: =IF('Ввод КР'!V48=$V$4,1,0) -> 0 | W43: =IF('Ввод КР'!W48=$W$4,1,0) -> 0 | X43: =IF('Ввод КР'!X48=$X$4,1,0) -> 0 | Y43: =IF('Ввод КР'!Y48=$Y$4,1,0) -> 0 | Z43: =IF('Ввод КР'!Z48=$Z$4,1,0) -> 0 | AA43: =IF('Ввод КР'!AA48=$AA$4,1,0) -> 0 | AB43: =IF('Результаты КР'!$J45=1,1,0) -> 0 | AC43: =IF('Результаты КР'!$J45=2,1,0) -> 0 | AD43: =IF('Результаты КР'!$J45=3,1,0) -> 0
A44: 40 | B44: =IF('Ввод КР'!B49>0,1,0) -> 0 | C44: =IF('Ввод КР'!C49=$C$4,1,0) -> 0 | D44: =IF('Ввод КР'!D49=$D$4,1,0) -> 0 | E44: =IF('Ввод КР'!E49=$E$4,1,0) -> 0 | F44: =IF('Ввод КР'!F49=$F$4,1,0) -> 0 | G44: =IF('Ввод КР'!G49=$G$4,1,0) -> 0 | H44: =IF('Ввод КР'!H49=$H$4,1,0) -> 0 | I44: =IF('Ввод КР'!I49=$I$4,1,0) -> 0 | J44: =IF('Ввод КР'!J49=$J$4,1,0) -> 0 | K44: =IF('Ввод КР'!K49=$K$4,1,0) -> 0 | L44: =IF('Ввод КР'!L49=$L$4,1,0) -> 0 | M44: =IF('Ввод КР'!M49=$M$4,1,0) -> 0 | N44: =IF('Ввод КР'!N49=$N$4,1,0) -> 0 | O44: =IF('Ввод КР'!O49=$O$4,1,0) -> 0 | P44: =IF('Ввод КР'!P49=$P$4,1,0) -> 0 | Q44: =IF('Ввод КР'!Q49=$Q$4,1,0) -> 0 | R44: =IF('Ввод КР'!R49=$R$4,1,0) -> 0 | S44: =IF('Ввод КР'!S49=$S$4,1,0) -> 0 | T44: =IF('Ввод КР'!T49=$T$4,1,0) -> 0 | U44: =IF('Ввод КР'!U49=$U$4,1,0) -> 0 | V44: =IF('Ввод КР'!V49=$V$4,1,0) -> 0 | W44: =IF('Ввод КР'!W49=$W$4,1,0) -> 0 | X44: =IF('Ввод КР'!X49=$X$4,1,0) -> 0 | Y44: =IF('Ввод КР'!Y49=$Y$4,1,0) -> 0 | Z44: =IF('Ввод КР'!Z49=$Z$4,1,0) -> 0 | AA44: =IF('Ввод КР'!AA49=$AA$4,1,0) -> 0 | AB44: =IF('Результаты КР'!$J46=1,1,0) -> 0 | AC44: =IF('Результаты КР'!$J46=2,1,0) -> 0 | AD44: =IF('Результаты КР'!$J46=3,1,0) -> 0
A45: Количество участников | B45: =SUM(B5:B44) -> 11 | C45: =IF($B$45>0,SUM(C5:C44)/$B$45*100,0) -> 90.90909091 | D45: =IF($B$45>0,SUM(D5:D44)/$B$45*100,0) -> 100 | E45: =IF($B$45>0,SUM(E5:E44)/$B$45*100,0) -> 100 | F45: 100 | G45: 100 | H45: 81.81818182 | I45: 100 | J45: 90.90909091 | K45: 100 | L45: 100 | M45: 54.54545455 | N45: 90.90909091 | O45: 72.72727273 | P45: 72.72727273 | Q45: 100 | R45: 72.72727273 | S45: 90.90909091 | T45: 72.72727273 | U45: 100 | V45: 63.63636364 | W45: 36.36363636 | X45: 18.18181818 | Y45: 0 | Z45: 63.63636364 | AA45: 90.90909091 | AB45: 0 | AC45: 36.36363636 | AD45: 63.63636364 | AE45: =(K46+P46)/AE4*100 -> 86.36363636 | AF45: =(E46+G46+X46)/AF4*100 -> 72.72727273 | AG45: =(M46+Z46)/AG4*100 -> 59.09090909 | AH45: ='Ввод ГП'!L12 -> 100 | AI45: =(C46+AA46)/AI4*100 -> 90.90909091 | AJ45: =(D46+N46+O46+X46)/AJ4*100 -> 76.36363636 | AK45: =(C46+AA46)/AK4*100 -> 90.90909091 | AL45: =J46/AL4*100 -> 90.90909091 | AM45: =(C46+F46+K46)/AM4*100 -> 96.96969697 | AN45: =(D46+L46+R46+S46+V46+W46)/AN4*100 -> 76.62337662 | AO45: =AA46/AO4*100 -> 90.90909091 | AP45: =('Ввод ГП'!K8+'Ввод ГП'!K9)/Справляемость_КР!AP4*100 -> 91.66666667 | AQ45: ='Ввод ГП'!L13 -> 83.33333333 | AR45: =(F46+L46+R46+V46)/AR4*100 -> 84.09090909 | AS45: =(H46+I46+S46+Y46)/AS4*100 -> 54.54545455 | AT45: =(Q46+U46+W46+Y46)/AT4*100 -> 61.81818182
C46: =SUM('Ввод КР'!C10:C49)/$B$45 -> 0.9090909091 | D46: =SUM('Ввод КР'!D10:D49)/$B$45 -> 1 | E46: =SUM('Ввод КР'!E10:E49)/$B$45 -> 1 | F46: =SUM('Ввод КР'!F10:F49)/$B$45 -> 1 | G46: =SUM('Ввод КР'!G10:G49)/$B$45 -> 1 | H46: =SUM('Ввод КР'!H10:H49)/$B$45 -> 0.8181818182 | I46: =SUM('Ввод КР'!I10:I49)/$B$45 -> 1 | J46: =SUM('Ввод КР'!J10:J49)/$B$45 -> 0.9090909091 | K46: =SUM('Ввод КР'!K10:K49)/$B$45 -> 1 | L46: =SUM('Ввод КР'!L10:L49)/$B$45 -> 1 | M46: =SUM('Ввод КР'!M10:M49)/$B$45 -> 0.5454545455 | N46: =SUM('Ввод КР'!N10:N49)/$B$45 -> 0.9090909091 | O46: =SUM('Ввод КР'!O10:O49)/$B$45 -> 1.727272727 | P46: =SUM('Ввод КР'!P10:P49)/$B$45 -> 0.7272727273 | Q46: =SUM('Ввод КР'!Q10:Q49)/$B$45 -> 1 | R46: =SUM('Ввод КР'!R10:R49)/$B$45 -> 0.7272727273 | S46: =SUM('Ввод КР'!S10:S49)/$B$45 -> 0.9090909091 | T46: =SUM('Ввод КР'!T10:T49)/$B$45 -> 0.7272727273 | U46: =SUM('Ввод КР'!U10:U49)/$B$45 -> 1 | V46: =SUM('Ввод КР'!V10:V49)/$B$45 -> 0.6363636364 | W46: =SUM('Ввод КР'!W10:W49)/$B$45 -> 1.090909091 | X46: =SUM('Ввод КР'!X10:X49)/$B$45 -> 0.1818181818 | Y46: =SUM('Ввод КР'!Y10:Y49)/$B$45 -> 0 | Z46: =SUM('Ввод КР'!Z10:Z49)/$B$45 -> 0.6363636364 | AA46: =SUM('Ввод КР'!AA10:AA49)/$B$45 -> 0.9090909091 | AB46: =SUM('Ввод КР'!AB10:AB49)/$B$45 -> 0 | AC46: =SUM('Ввод КР'!AC10:AC49)/$B$45 -> 0 | AD46: =SUM('Ввод КР'!AD10:AD49)/$B$45 -> 0
AE48: Данные для диаграммы по освоению компетенций:
B49: =CONCATENATE('Ввод КР'!C3,", ",'Ввод КР'!L3,'Ввод КР'!M3," класс, ",'Ввод КР'!T3) -> МОУ Кубринская СОШ, 2 класс, 22.04.2014 | AE49: 1 | AF49: 2 | AG49: 10 | AH49: 14 | AI49: 15 | AJ49: 16 | AK49: 6 | AL49: 8 | AM49: 3 | AN49: 4 | AO49: 5 | AP49: 7 | AQ49: 9 | AR49: 11 | AS49: 12 | AT49: 13
AE50: =AE45 -> 86.36363636 | AF50: =AF45 -> 72.72727273 | AG50: =AN45 -> 76.62337662 | AH50: =AR45 -> 84.09090909 | AI50: =AS45 -> 54.54545455 | AJ50: =AT45 -> 61.81818182 | AK50: =AJ45 -> 76.36363636 | AL50: =AL45 -> 90.90909091 | AM50: =AG45 -> 59.09090909 | AN50: =AH45 -> 100 | AO50: =AI45 -> 90.90909091 | AP50: =AK45 -> 90.90909091 | AQ50: =AM45 -> 96.96969697 | AR50: =AO45 -> 90.90909091 | AS50: =AP45 -> 91.66666667 | AT50: =AQ45 -> 83.33333333

Sheet Ввод ГП
A1: Сводная таблица успешности работы в группах | L1: Таблица 3
B3: Наименование ОУ | C3: ='Ввод КР'!C3:I3 -> МОУ Кубринская СОШ | G3: Класс | H3: 2 | I3: ='Ввод КР'!M3 -> 0 | J3: Количество групп: | L3: 2
A5: № п/п | B5: Наименование метапредметного результата | C5: Количество баллов
C6: 1 группа | D6: 2 группа | E6: 3 группа | F6: 4 группа | G6: 5 группа | H6: 6 группа | I6: 7 группа | J6: 8 группа | K6: Среднее для класса | L6: Кдостижений
A8: 1. | B8: Принятие цели групповой работы | C8: 3 | D8: 3 | K8: =IF($L$3>0,SUM(C8:J8)/$L$3,0) -> 3 | L8: =K8/3*100 -> 100
A9: 2. | B9: Распределение ролей в группе | C9: 3 | D9: 2 | K9: 2.5 | L9: =K9/3*100 -> 83.33333333
A10: 3. | B10: Лидерство в группе | C10: 3 | D10: 2 | K10: 2.5 | L10: =K10/3*100 -> 83.33333333
A11: Всего по регулятивным умениям | C11: =SUM(C8:C10) -> 9 | D11: =SUM(D8:D10) -> 7 | E11: 0 | F11: 0 | G11: 0 | H11: 0 | I11: 0 | J11: 0 | K11: 8 | L11: =K11/9*100 -> 88.88888889
A12: 4. | B12: Эффективность коммуникаций | C12: 3 | D12: 3 | K12: 3 | L12: =K12/3*100 -> 100
A13: 5. | B13: Возникновение конфликтов в группе | C13: 3 | D13: 2 | K13: 2.5 | L13: =K13/3*100 -> 83.33333333
A14: Всего по коммуникативным умениям | C14: =SUM(C12:C13) -> 6 | D14: =SUM(D12:D13) -> 5 | E14: 0 | F14: 0 | G14: 0 | H14: 0 | I14: 0 | J14: 0 | K14: 5.5 | L14: =K14/6*100 -> 91.66666667
A15: ИТОГО ЗА ВСЮ РАБОТУ, БАЛЛЫ | C15: =C11+C14 -> 15 | D15: =D11+D14 -> 12 | E15: 0 | F15: 0 | G15: 0 | H15: 0 | I15: 0 | J15: 0 | K15: 13.5 | L15: =K15/15*100 -> 90
A16: УСПЕШНОСТЬ ВЫПОЛНЕНИЯ ГРУППОВОЙ РАБОТЫ,% | C16: =C15/15*100 -> 100 | D16: 80 | E16: 0 | F16: 0 | G16: 0 | H16: 0 | I16: 0 | J16: 0 | K16: 90
B21: Принятие цели групповой работы | C21: =L8 -> 100
B22: Распределение ролей в группе | C22: =L9 -> 83.33333333
B23: Лидерство в группе | C23: =L10 -> 83.33333333
B24: Эффективность коммуникаций | C24: =L12 -> 100
B25: Возникновение конфликтов в группе | C25: =L13 -> 83.33333333
